Workbook

Sheet 減衰振動
A1: 振動の運動方程式
A2: mx''+cx'+kx=-sign(x')μ'mg+fsinΩt | F2: 減衰振動 | J2: マクロで計算➡ | L2: exe("ルンゲ･クッタ･ギル法","ForcedOscillation",C8:C18,J8:L8)
A3: x''=-(c/m)x'-(k/m)x-sign(x')(μ'g)+(f/m)sinΩt | J3: マクロは標準モジュール-Module6 の中。 実行させるには =exe(･･･ と先頭に＝を付加する。
A4: ダンパ＋バネ＋動摩擦＋外力 | G4: 解析解 | K4: 数値積分 | O4: 解析解との差
E5: 時間 | F5: 加速度 | G5: 速度 | H5: 変位 | J5: 加速度 | K5: 速度 | L5: 変位 | N5: 加速度 | O5: 速度 | P5: 変位
E6: t | F6: 理論値x'' | G6: 理論値x' | H6: 理論値x | J6: x'' | K6: x' | L6: x | N6: x'' | O6: x' | P6: x
E7: [s] | F7: [m/s^2] | G7: [m/s] | H7: [m] | J7: [m/s^2] | K7: [m/s] | L7: [m] | N7: [m/s^2] | O7: [m/s] | P7: [m]
A8: 時間間隔 | B8: Δt | C8: =C9/500 -> 0.012 | D8: [s] | E8: 0 | F8: =-2*$C$30*G8-$C$25^2*H8 -> -24 | G8: =-$C$30*H8-$C$31*$C$27*EXP(-$C$30*E8)*SIN($C$27*E8+$C$32) -> 0 | H8: =$C$31*EXP(-$C$30*E8)*COS($C$27*E8+$C$32) -> 6 | J8: -24 | K8: 0 | L8: 6 | N8: =J8-F8 -> 0 | O8: =K8-G8 -> 0 | P8: 0
A9: 終了時間 | B9: TL | C9: 6 | D9: [s] | E9: =E8+$C$8 -> 0.012 | F9: -23.87818645 | G9: -0.2872823236 | H9: 5.998274844 | J9: -23.87818645 | K9: -0.2872823229 | L9: 5.998274844 | N9: =J9-F9 -> -9.099423437e-10 | O9: 7.001659252e-10 | P9: 1.574687047e-10
A10: 重力加速度 | B10: g | C10: 9.8 | D10: [m/s^2] | E10: 0.024 | F10: -23.74323598 | G10: -0.5730239262 | H10: 5.993111387 | J10: -23.74323598 | K10: -0.5730239248 | L10: 5.993111388 | N10: -1.877683786e-09 | O10: 1.378145709e-09 | P10: 3.316067421e-10
A11: 質量 | B11: m | C11: 1 | D11: [kg] | E11: 0.036 | F11: -23.59528904 | G11: -0.8570680004 | H11: 5.98452906 | J11: -23.59528904 | K11: -0.8570679983 | L11: 5.984529061 | N11: -2.901213492e-09 | O11: 2.032910063e-09 | P11: 5.220126553e-10
A12: 粘性係数 | B12: c | C12: 0.4 | D12: [Ns/m] | E12: 0.048 | F12: -23.43449288 | G12: -1.139259465 | H12: 5.972549166 | J12: -23.43449288 | K12: -1.139259463 | L12: 5.972549167 | N12: -3.978438912e-09 | O12: 2.66346345e-09 | P12: 7.282636716e-10
A13: バネ定数 | B13: k | C13: 4 | D13: [N/m] | E13: 0.06 | F13: -23.26100141 | G13: -1.419445047 | H13: 5.957194857 | J13: -23.26100141 | K13: -1.419445044 | L13: 5.957194858 | N13: =J13-F13 -> -5.107224865e-09 | O13: =K13-G13 -> 3.268844084e-09 | P13: =L13-H13 -> 9.499210307e-10
A14: 動摩擦係数 | B14: μ' | C14: 0 | D14: [ND] | E14: 0.072 | F14: -23.07497511 | G14: -1.697473359 | H14: 5.938491114 | J14: -23.07497512 | K14: -1.697473355 | L14: 5.938491115 | N14: =J14-F14 -> -6.285379328e-09 | O14: 3.848124708e-09 | P14: 1.186531762e-09
A15: 強制力 | B15: f | C15: 0 | D15: [N] | E15: 0.084 | F15: -22.8765809 | G15: -1.973194978 | H15: 5.916464723 | J15: -22.87658091 | K15: -1.973194973 | L15: 5.916464725 | N15: -7.510685407e-09 | O15: 4.400411813e-09 | P15: 1.437629571e-09
A16: 強制力角速度 | B16: Ω | C16: 0 | D16: [rad/s] | E16: 0.096 | F16: -22.665992 | G16: -2.246462521 | H16: 5.891144251 | J16: -22.66599201 | K16: -2.246462516 | L16: 5.891144253 | N16: -8.78086226e-09 | O16: 4.924848973e-09 | P16: 1.702730401e-09
A17: 初期位置 | B17: x0 | C17: 6 | D17: [m] | E17: 0.108 | F17: -22.44338779 | G17: -2.517130723 | H17: 5.862560021 | J17: -22.4433878 | K17: -2.517130718 | L17: 5.862560023 | N17: -1.009360417e-08 | O17: 5.420615512e-09 | P17: 1.981339537e-09
A18: 初期速度 | B18: x'0 | C18: 0 | D18: [m/s] | E18: 0.12 | F18: -22.20895373 | G18: -2.785056508 | H18: 5.830744084 | J18: -22.20895374 | K18: -2.785056502 | L18: 5.830744086 | N18: -1.144657702e-08 | O18: 5.886928722e-09 | P18: 2.272950717e-09
E19: 0.132 | F19: -21.96288117 | G19: -3.050099058 | H19: 5.795730198 | J19: -21.96288118 | K19: -3.050099052 | L19: 5.7957302 | N19: -1.283737205e-08 | O19: 6.323041202e-09 | P19: 2.577039027e-09
B20: c/m | C20: =C12/C11 -> 0.4 | D20: [1/s] | E20: 0.144 | F20: -21.70536722 | G20: -3.31211989 | H20: 5.757553794 | J20: -21.70536723 | K20: -3.312119883 | L20: 5.757553797 | N20: -1.426360186e-08 | O20: 6.728245516e-09 | P20: 2.893076001e-09
B21: k/m | C21: =C13/C11 -> 4 | D21: [1/s^2] | E21: 0.156 | F21: -21.43661464 | G21: -3.570982916 | H21: 5.716251952 | J21: -21.43661466 | K21: -3.570982909 | L21: 5.716251955 | N21: -1.572280439e-08 | O21: 7.101872868e-09 | P21: 3.220513634e-09
B22: μ'g | C22: =C14*C10 -> 0 | D22: [s^2/m] | E22: 0.168 | F22: -21.15683167 | G22: -3.826554519 | H22: 5.67186337 | J22: -21.15683169 | K22: -3.826554511 | L22: 5.671863373 | N22: -1.721250698e-08 | O22: 7.443291317e-09 | P22: 3.558797701e-09
B23: f/m | C23: =C15/C11 -> 0 | D23: [N/m] | E23: 0.18 | F23: -20.86623189 | G23: -4.078703608 | H23: 5.624428334 | J23: -20.86623191 | K23: -4.078703601 | L23: 5.624428338 | N23: -1.873021205e-08 | O23: 7.751910225e-09 | P23: 3.907361545e-09
A24: 振動中心 | B24: p＝mg/k | C24: =C11*C10/C13 -> 2.45 | D24: [m] | E24: 0.192 | F24: -20.56503407 | G24: -4.327301691 | H24: 5.573988688 | J24: -20.56503409 | K24: -4.327301683 | L24: 5.573988692 | N24: -2.027339363e-08 | O24: 8.027178922e-09 | P24: 4.265630515e-09
A25: 固有角振動数 | B25: ω＝√(k/m) | C25: =SQRT(C13/C11) -> 2 | D25: ［rad/s］ | E25: 0.204 | F25: -20.25346203 | G25: -4.572222929 | H25: 5.520587801 | J25: -20.25346205 | K25: -4.57222292 | L25: 5.520587806 | N25: -2.183951864e-08 | O25: 8.268583152e-09 | P25: 4.633021078e-09
A26: 〝 | B26: 〝 | C26: =DEGREES(C25) -> 114.591559 | D26: [deg/s] | E26: 0.216 | F26: -19.93174447 | G26: -4.813344197 | H26: 5.464270538 | J26: -19.93174449 | K26: -4.813344189 | L26: 5.464270543 | N26: -2.342601846e-08 | O26: 8.475653956e-09 | P26: 5.008939041e-09
A27: 減衰固有角振動数 | B27: ωd＝ω√(1-ζ^2) | C27: =C25*SQRT(1-C29^2) -> 1.989974874 | D27: ［rad/s］ | E27: 0.228 | F27: -19.60011483 | G27: -5.050545147 | H27: 5.405083222 | J27: -19.60011485 | K27: -5.050545138 | L27: 5.405083227 | N27: -2.503032448e-08 | O27: 8.64796057e-09 | P27: 5.392784885e-09
A28: 〝 | B28: 〝 | C28: =DEGREES(C27) -> 114.0171616 | D28: [deg/s] | E28: 0.24 | F28: -19.25881112 | G28: -5.283708256 | H28: 5.343073606 | J28: -19.25881115 | K28: -5.283708248 | L28: 5.343073612 | N28: -2.664983967e-08 | O28: 8.785115746e-09 | P28: 5.783948431e-09
A29: 減衰比 | B29: ζ＝c/{2√(mk)} | C29: =C12/(2*SQRT(C11*C13)) -> 0.1 | D29: [ND] | E29: 0.252 | F29: -18.90807578 | G29: -5.512718887 | H29: 5.278290834 | J29: -18.90807581 | K29: -5.512718878 | L29: 5.27829084 | N29: -2.82819741e-08 | O29: 8.886767766e-09 | P29: 6.181816836e-09
A30: 減衰率 | B30: γ＝ζω | C30: =C29*C25 -> 0.2 | E30: 0.264 | F30: -18.5481555 | G30: -5.737465335 | H30: 5.21078541 | J30: -18.54815553 | K30: -5.737465326 | L30: 5.210785416 | N30: -2.992411652e-08 | O30: 8.952610209e-09 | P30: 6.585768375e-09
A31: 振幅 | B31: A | C31: =SQRT(($C$17^2+2*$C$17*$C$29*($C$18/$C$25)+($C$18/$C$25)^2)/(1-$C$29^2)) -> 6.030226892 | D31: [m] | E31: 0.276 | F31: -18.17930108 | G31: -5.957838882 | H31: 5.140609158 | J31: -18.17930111 | K31: -5.957838873 | L31: 5.140609165 | N31: -3.15736628e-08 | O31: 8.982381061e-09 | P31: 6.99517777e-09
A32: 初期位相 | B32: α | C32: =ATAN2($C$17,-($C$18+$C$29*$C$25*$C$17)/($C$25*SQRT(1-$C$29^2))) -> -0.1001674212 | D32: [rad] | E32: 0.288 | F32: -17.80176723 | G32: -6.173733843 | H32: 5.067815191 | J32: -17.80176726 | K32: -6.173733834 | L32: 5.067815199 | N32: -3.322798392e-08 | O32: 8.97585295e-09 | P32: 7.409410863e-09
A33: 〝 | B33: 〝 | C33: =DEGREES(C32) -> -5.739170477 | D33: [deg] | E33: 0.3 | F33: -17.41581244 | G33: -6.385047611 | H33: 4.992457871 | J33: -17.41581247 | K33: -6.385047602 | L33: 4.992457879 | N33: -3.488447575e-08 | O33: 8.93284291e-09 | P33: 7.827835269e-09
E34: 0.312 | F34: -17.0216988 | G34: -6.591680705 | H34: 4.914592772 | J34: -17.02169884 | K34: -6.591680696 | L34: 4.91459278 | N34: -3.654053415e-08 | O34: 8.853213274e-09 | P34: 8.249812389e-09
A35: A^2＝{x0^2＋2x0ζ(x'0/ω)＋(x'0/ω)^2}/(1－ζ^2) | E35: 0.324 | F35: -16.61969185 | G35: -6.793536809 | H35: 4.834276642 | J35: -16.61969188 | K35: -6.7935368 | L35: 4.834276651 | N35: -3.819354077e-08 | O35: 8.736859236e-09 | P35: 8.674699181e-09
A36: α＝atan2[x0,－(x'0+ζωx0)/{ω√(1－ζ^2)}] | E36: 0.336 | F36: -16.21006035 | G36: -6.990522811 | H36: 4.751567369 | J36: -16.21006039 | K36: -6.990522802 | L36: 4.751567378 | N36: -3.984089858e-08 | O36: 8.583730171e-09 | P36: 9.101851717e-09
E37: 0.348 | F37: -15.7930762 | G37: -7.182548846 | H37: 4.666523935 | J37: -15.79307624 | K37: -7.182548838 | L37: 4.666523945 | N37: -4.148002652e-08 | O37: 8.393805651e-09 | P37: 9.530626066e-09
E38: 0.36 | F38: -15.3690142 | G38: -7.369528328 | H38: 4.579206383 | J38: -15.36901425 | K38: -7.36952832 | L38: 4.579206393 | N38: -4.310833646e-08 | O38: 8.167108767e-09 | P38: 9.960372971e-09
A39: 減衰振動解析解 | C39: 運動方程式 | E39: 0.372 | F39: -14.93815191 | G39: -7.551377985 | H39: 4.489675775 | J39: -14.93815195 | K39: -7.551377978 | L39: 4.489675786 | N39: -4.472326509e-08 | O39: 7.903704358e-09 | P39: 1.039044584e-08
A40: x''+2ζωx'+ω^2x=0 | C40: 解析解 | E40: 0.384 | F40: -14.50076945 | G40: -7.728017893 | H40: 4.397994151 | J40: -14.50076949 | K40: -7.728017885 | L40: 4.397994162 | N40: -4.632227402e-08 | O40: 7.603706997e-09 | P40: 1.082019807e-08
A41: x＝Ae^(－ζωt)cos{ω√(1－ζ^2)t＋α} | E41: 0.396 | F41: -14.05714936 | G41: -7.899371501 | H41: 4.304224491 | J41: -14.05714941 | K41: -7.899371494 | L41: 4.304224503 | N41: -4.790283548e-08 | O41: 7.267260571e-09 | P41: 1.124898308e-08
A42: x'＝－ζωx－Aω√(1－ζ^2)e^(－ζωt)sin{ω√(1－ζ^2)t＋α} | E42: 0.408 | F42: -13.60757643 | G42: -8.065365666 | H42: 4.208430673 | J42: -13.60757648 | K42: -8.065365659 | L42: 4.208430685 | N42: -4.94624377e-08 | O42: 6.894550708e-09 | P42: 1.167615427e-08
A43: x''＝－2ζωx'－ω^2x | E43: 0.42 | F43: -13.15233746 | G43: -8.225930671 | H43: 4.110677432 | J43: -13.15233751 | K43: -8.225930665 | L43: 4.110677445 | N43: -5.099860267e-08 | O43: 6.48580567e-09 | P43: 1.210107037e-08
E44: 0.432 | F44: -12.69172118 | G44: -8.381000255 | H44: 4.011030319 | J44: -12.69172123 | K44: -8.381000249 | L44: 4.011030332 | N44: -5.250888435e-08 | O44: 6.041299017e-09 | P44: 1.252309101e-08
A45: 計算用 | E45: 0.444 | F45: -12.22601799 | G45: -8.530511632 | H45: 3.90955566 | J45: -12.22601804 | K45: -8.530511626 | L45: 3.909555673 | N45: -5.399084557e-08 | O45: 5.561332728e-09 | P45: 1.294157803e-08
A46: x＝Ae^(－γt)cos(ωdt＋α) | E46: 0.456 | F46: -11.75551984 | G46: -8.674405507 | H46: 3.806320511 | J46: -11.7555199 | K46: -8.674405502 | L46: 3.806320524 | N46: -5.544209003e-08 | O46: 5.046253193e-09 | P46: 1.335589683e-08
A47: x'＝－γx－Aωde^(－γt)sin(ωdt＋α) | E47: 0.468 | F47: -11.28052004 | G47: -8.812626101 | H47: 3.701392621 | J47: -11.2805201 | K47: -8.812626097 | L47: 3.701392635 | N47: -5.686026583e-08 | O47: 4.496451211e-09 | P47: 1.376542125e-08
A48: x''＝－2γx'－ω^2x | E48: 0.48 | F48: -10.80131308 | G48: -8.945121159 | H48: 3.594840387 | J48: -10.80131314 | K48: -8.945121155 | L48: 3.594840401 | N48: -5.824303528e-08 | O48: 3.91234245e-09 | P48: 1.416952466e-08
C49: =IF($C$29>1,"'過減衰","") ->  | E49: 0.492 | F49: -10.31819446 | G49: -9.071841968 | H49: 3.486732811 | J49: -10.31819452 | K49: -9.071841965 | L49: 3.486732825 | N49: -5.958811222e-08 | O49: 3.294395867e-09 | P49: 1.456758847e-08
A50: 過減衰 | B50: ζ>1 | C50: =IF($C$29=1,"'臨界減衰","") ->  | E50: 0.504 | F50: -9.831460485 | G50: -9.192743365 | H50: 3.377139458 | J50: -9.831460546 | K50: -9.192743362 | L50: 3.377139473 | N50: -6.089324067e-08 | O50: 2.643103514e-09 | P50: 1.495899982e-08
A51: 臨界減衰 | B51: ζ=1 | C51: =IF(AND(0<$C$29,$C$29<1),"'減衰振動","") -> '減衰振動 | E51: 0.516 | F51: -9.341408159 | G51: -9.307783746 | H51: 3.266130414 | J51: -9.341408221 | K51: -9.307783744 | L51: 3.26613043 | N51: -6.215621795e-08 | O51: 1.959005402e-09 | P51: 1.534315386e-08
A52: 減衰振動 | B52: 0<ζ<1 | C52: =IF($C$29=0,"単振動","") ->  | E52: 0.528 | F52: -8.848334948 | G52: -9.416925077 | H52: 3.153776245 | J52: -8.848335011 | K52: -9.416925076 | L52: 3.15377626 | N52: -6.33748769e-08 | O52: 1.242668191e-09 | P52: 1.571945241e-08
A53: 単振動 | B53: ζ=0 | E53: 0.54 | F53: -8.352538632 | G53: -9.520132893 | H53: 3.040147947 | J53: -8.352538696 | K53: -9.520132892 | L53: 3.040147963 | N53: -6.454709478e-08 | O53: 4.947029453e-10 | P53: 1.608730305e-08
E54: 0.552 | F54: -7.854317132 | G54: -9.617376304 | H54: 2.925316913 | J54: -7.854317197 | K54: -9.617376304 | L54: 2.92531693 | N54: -6.567079325e-08 | O54: -2.842526214e-10 | P54: 1.644612357e-08
E55: 0.564 | F55: -7.353968335 | G55: -9.708627995 | H55: 2.809354883 | J55: -7.353968402 | K55: -9.708627996 | L55: 2.8093549 | N55: -6.674395081e-08 | O55: -1.09352527e-09 | P55: 1.679534023e-08
E56: 0.576 | F56: -6.851789925 | G56: -9.793864225 | H56: 2.692333904 | J56: -6.851789993 | K56: -9.793864227 | L56: 2.692333921 | N56: -6.776458861e-08 | O56: -1.932400906e-09 | P56: 1.713438724e-08
E57: 0.588 | F57: -6.34807921 | G57: -9.873064824 | H57: 2.574326285 | J57: -6.348079279 | K57: -9.873064827 | L57: 2.574326302 | N57: -6.87307935e-08 | O57: -2.800138788e-09 | P57: 1.746271217e-08
E58: 0.6 | F58: -5.843132956 | G58: -9.946213184 | H58: 2.455404557 | J58: -5.843133025 | K58: -9.946213188 | L58: 2.455404575 | N58: -6.964068877e-08 | O58: -3.6959662e-09 | P58: 1.777976877e-08
E59: 0.612 | F59: -5.337247217 | G59: -10.01329626 | H59: 2.33564143 | J59: -5.337247288 | K59: -10.01329626 | L59: 2.335641448 | N59: -7.049246609e-08 | O59: -4.619080229e-09 | P59: 1.808502459e-08
E60: 0.624 | F60: -4.830717171 | G60: -10.07430454 | H60: 2.215109747 | J60: -4.830717242 | K60: -10.07430455 | L60: 2.215109765 | N60: -7.128436774e-08 | O60: -5.568642436e-09 | P60: 1.837795605e-08
E61: 0.636 | F61: -4.323836951 | G61: -10.12923207 | H61: 2.093882445 | J61: -4.323837023 | K61: -10.12923208 | L61: 2.093882463 | N61: -7.201469732e-08 | O61: -6.54378951e-09 | P61: 1.865805332e-08
E62: 0.648 | F62: -3.816899482 | G62: -10.1780764 | H62: 1.97203251 | J62: -3.816899555 | K62: -10.17807641 | L62: 1.972032529 | N62: -7.268181879e-08 | O62: -7.543627945e-09 | P62: 1.892481749e-08
E63: 0.66 | F63: -3.310196323 | G63: -10.22083859 | H63: 1.84963294 | J63: -3.310196396 | K63: -10.2208386 | L63: 1.849632959 | N63: -7.328416363e-08 | O63: -8.567237586e-09 | P63: 1.917776471e-08
E64: 0.672 | F64: -2.804017497 | G64: -10.25752321 | H64: 1.726756695 | J64: -2.804017571 | K64: -10.25752322 | L64: 1.726756714 | N64: -7.382022194e-08 | O64: -9.613662755e-09 | P64: 1.94164218e-08
E65: 0.684 | F65: -2.298651341 | G65: -10.28813826 | H65: 1.603476662 | J65: -2.298651415 | K65: -10.28813828 | L65: 1.603476681 | N65: -7.428854509e-08 | O65: -1.068193711e-08 | P65: 1.964032981e-08
E66: 0.696 | F66: -1.794384343 | G66: -10.31269524 | H66: 1.479865609 | J66: -1.794384418 | K66: -10.31269525 | L66: 1.479865629 | N66: -7.468775287e-08 | O66: -1.177105524e-08 | P66: 1.984904374e-08
E67: 0.708 | F67: -1.291500987 | G67: -10.33120902 | H67: 1.355996149 | J67: -1.291501063 | K67: -10.33120904 | L67: 1.355996169 | N67: -7.501653609e-08 | O67: -1.287999574e-08 | P67: 2.004213351e-08
E68: 0.72 | F68: -0.7902836016 | G68: -10.34369792 | H68: 1.231940693 | J68: -0.7902836769 | K68: -10.34369794 | L68: 1.231940713 | N68: -7.527364509e-08 | O68: -1.400771232e-08 | P68: 2.021918255e-08
E69: 0.732 | F69: -0.2910122036 | G69: -10.35018361 | H69: 1.107771412 | J69: -0.2910122791 | K69: -10.35018363 | L69: 1.107771433 | N69: -7.54579057e-08 | O69: -1.515312675e-08 | P69: 2.037978919e-08
E70: 0.744 | F70: 0.2060356475 | G70: -10.35069111 | H70: 0.9835601993 | J70: 0.2060355719 | K70: -10.35069113 | L70: 0.9835602199 | N70: -7.556822057e-08 | O70: -1.631515545e-08 | P70: 2.052357073e-08
E71: 0.756 | F71: 0.7005849992 | G71: -10.34524875 | H71: 0.8593786255 | J71: 0.7005849236 | K71: -10.34524877 | L71: 0.8593786461 | N71: -7.56035492e-08 | O71: -1.749268641e-08 | P71: 2.065015603e-08
E72: 0.768 | F72: =-2*$C$30*G72-$C$25^2*H72 -> 1.192363651 | G72: =-$C$30*H72-$C$31*$C$27*EXP(-$C$30*E72)*SIN($C$27*E72+$C$32) -> -10.33388816 | H72: =$C$31*EXP(-$C$30*E72)*COS($C$27*E72+$C$32) -> 0.7352979027 | J72: 1.192363576 | K72: -10.33388817 | L72: 0.7352979234 | N72: -7.556293458e-08 | O72: -1.868458277e-08 | P72: 2.075919192e-08
E73: =E72+$C$8 -> 0.78 | F73: 1.6811023 | G73: -10.31664419 | H73: 0.6113888437 | J73: 1.681102224 | K73: -10.31664421 | L73: 0.6113888645 | N73: -7.544548408e-08 | O73: -1.988970233e-08 | P73: 2.085034134e-08
E74: 0.792 | F74: 2.166534675 | G74: -10.29355493 | H74: 0.4877218238 | J74: 2.1665346 | K74: -10.29355495 | L74: 0.4877218447 | N74: -7.52503877e-08 | O74: -2.110687447e-08 | P74: 2.092328427e-08
E75: 0.804 | F75: 2.648397684 | G75: -10.26466163 | H75: 0.364366742 | J75: 2.648397609 | K75: -10.26466165 | L75: 0.364366763 | N75: -7.497690335e-08 | O75: -2.233491614e-08 | P75: 2.097771751e-08
E76: 0.816 | F76: 3.126431545 | G76: -10.2300087 | H76: 0.2413929836 | J76: 3.12643147 | K76: -10.23000872 | L76: 0.2413930046 | N76: -7.462436225e-08 | O76: -2.357263185e-08 | P76: 2.101335364e-08
E77: 0.828 | F77: 3.600379918 | G77: -10.18964362 | H77: 0.1188693823 | J77: 3.600379843 | K77: -10.18964364 | L77: 0.1188694033 | N77: -7.419218306e-08 | O77: -2.481881012e-08 | P77: 2.102992674e-08
E78: 0.84 | F78: 4.069990039 | G78: -10.14361693 | H78: -0.003135816401 | J78: 4.069989965 | K78: -10.14361696 | L78: -0.003135795374 | N78: =J78-F78 -> -7.367985067e-08 | O78: -2.607222171e-08 | P78: 2.102718504e-08
E79: 0.852 | F79: 4.535012848 | G79: -10.09198221 | H79: -0.1245549916 | J79: 4.535012775 | K79: -10.09198223 | L79: -0.1245549706 | N79: -7.308693117e-08 | O79: -2.733163029e-08 | P79: 2.100489589e-08
E80: 0.864 | F80: 4.995203114 | G80: -10.03479596 | H80: -0.2453211829 | J80: 4.995203041 | K80: -10.03479598 | L80: -0.2453211619 | N80: -7.241306132e-08 | O80: -2.859579418e-08 | P80: 2.096284496e-08
E81: 0.876 | F81: 5.450319554 | G81: -9.972117627 | H81: -0.3653681258 | J81: 5.450319482 | K81: -9.972117657 | L81: -0.3653681049 | N81: -7.165796312e-08 | O81: -2.986345216e-08 | P81: 2.090083606e-08
E82: 0.888 | F82: 5.900124958 | G82: -9.904009531 | H82: -0.4846302865 | J82: 5.900124888 | K82: -9.904009562 | L82: -0.4846302656 | N82: -7.082143139e-08 | O82: -3.113333946e-08 | P82: 2.081869188e-08
E83: 0.9 | F83: 6.344386304 | G83: -9.830536805 | H83: -0.6030428957 | J83: 6.344386235 | K83: -9.830536837 | L83: -0.6030428749 | N83: -6.990333556e-08 | O83: -3.2404186e-08 | P83: 2.07162526e-08
E84: 0.912 | F84: 6.782874871 | G84: -9.751767352 | H84: -0.7205419825 | J84: 6.782874802 | K84: -9.751767385 | L84: -0.7205419619 | N84: -6.89036419e-08 | O84: -3.367470214e-08 | P84: 2.059338067e-08
E85: 0.924 | F85: 7.215366348 | G85: -9.667771797 | H85: -0.8370644073 | J85: 7.21536628 | K85: -9.667771832 | L85: -0.8370643869 | N85: -6.782236817e-08 | O85: -3.494361778e-08 | P85: 2.044995373e-08
E86: 0.936 | F86: 7.641640947 | G86: -9.578623428 | H86: -0.952547894 | J86: 7.64164088 | K86: -9.578623464 | L86: -0.9525478737 | N86: -6.665962715e-08 | O86: -3.620963973e-08 | P86: 2.028587065e-08
E87: 0.948 | F87: 8.061483503 | G87: -9.484398143 | H87: -1.066931062 | J87: 8.061483438 | K87: -9.48439818 | L87: -1.066931041 | N87: -6.541560715e-08 | O87: -3.747147126e-08 | P87: 2.010104883e-08
E88: 0.96 | F88: 8.474683579 | G88: -9.385174394 | H88: -1.180153455 | J88: 8.474683515 | K88: -9.385174433 | L88: -1.180153435 | N88: -6.409056752e-08 | O88: -3.872782806e-08 | P88: 1.989542486e-08
E89: 0.972 | F89: 8.881035559 | G89: -9.28103313 | H89: -1.292155577 | J89: 8.881035496 | K89: -9.28103317 | L89: -1.292155557 | N89: -6.268485464e-08 | O89: -3.997741338e-08 | P89: 1.966895535e-08
E90: 0.984 | F90: 9.280338749 | G90: -9.172057736 | H90: -1.402878914 | J90: 9.280338688 | K90: -9.172057778 | L90: -1.402878894 | N90: -6.119888774e-08 | O90: -4.121892871e-08 | P90: 1.942161476e-08
E91: 0.996 | F91: 9.672397466 | G91: -9.058333978 | H91: -1.512265969 | J91: 9.672397406 | K91: -9.058334021 | L91: -1.512265949 | N91: -5.963316063e-08 | O91: -4.245109331e-08 | P91: 1.915339976e-08
E92: 1.008 | F92: 10.05702113 | G92: -8.939949938 | H92: -1.620260288 | J92: 10.05702107 | K92: -8.939949982 | L92: -1.620260269 | N92: -5.79882542e-08 | O92: -4.367261397e-08 | P92: 1.886432477e-08
E93: 1.02 | F93: 10.43402433 | G93: -8.816995954 | H93: -1.726806487 | J93: 10.43402427 | K93: -8.816995999 | L93: -1.726806468 | N93: -5.626481325e-08 | O93: -4.488220995e-08 | P93: 1.855442378e-08
E94: 1.032 | F94: 10.80322695 | G94: -8.689564557 | H94: -1.831850281 | J94: 10.80322689 | K94: -8.689564603 | L94: -1.831850262 | N94: -5.446354834e-08 | O94: -4.607859871e-08 | P94: 1.82237474e-08
E95: 1.044 | F95: 11.16445418 | G95: -8.55775041 | H95: -1.935338505 | J95: 11.16445413 | K95: -8.557750457 | L95: -1.935338487 | N95: -5.258528013e-08 | O95: -4.72605084e-08 | P95: 1.787237114e-08
E96: 1.056 | F96: 11.51753668 | G96: -8.421650237 | H96: -2.037219146 | J96: 11.51753663 | K96: -8.421650285 | L96: -2.037219129 | N96: -5.06308826e-08 | O96: -4.8426676e-08 | P96: 1.750038825e-08
E97: 1.068 | F97: 11.86231055 | G97: -8.281362764 | H97: -2.137441361 | J97: 11.8623105 | K97: -8.281362814 | L97: -2.137441344 | N97: -4.860129543e-08 | O97: -4.957583855e-08 | P97: 1.710790754e-08
E98: 1.08 | F98: 12.19861748 | G98: -8.136988652 | H98: -2.235955506 | J98: 12.19861744 | K98: -8.136988703 | L98: -2.235955489 | N98: -4.64975507e-08 | O98: -5.070675613e-08 | P98: 1.669506311e-08
E99: 1.092 | F99: 12.52630478 | G99: -7.988630424 | H99: -2.332713152 | J99: 12.52630473 | K99: -7.988630476 | L99: -2.332713136 | N99: -4.432072842e-08 | O99: -5.181818619e-08 | P99: 1.626200063e-08
E100: 1.104 | F100: 12.84522543 | G100: -7.836392405 | H100: -2.427667116 | J100: 12.84522539 | K100: -7.836392457 | L100: -2.427667101 | N100: -4.20720081e-08 | O100: -5.290891014e-08 | P100: 1.580889286e-08
E101: 1.116 | F101: 13.15523816 | G101: -7.680380646 | H101: -2.520771475 | J101: 13.15523812 | K101: -7.6803807 | L101: -2.520771459 | N101: -3.975261542e-08 | O101: -5.397770764e-08 | P101: 1.533592453e-08
E102: 1.128 | F102: 13.4562075 | G102: -7.520702863 | H102: -2.611981588 | J102: 13.45620746 | K102: -7.520702918 | L102: -2.611981573 | N102: -3.736386311e-08 | O102: -5.502338229e-08 | P102: 1.484330392e-08
E103: 1.14 | F103: 13.74800381 | G103: -7.357468359 | H103: -2.701254116 | J103: 13.74800377 | K103: -7.357468415 | L103: -2.701254102 | N103: -3.49071243e-08 | O103: -5.604475639e-08 | P103: 1.433125663e-08
E104: 1.152 | F104: 14.03050336 | G104: -7.19078796 | H104: -2.788547044 | J104: 14.03050333 | K104: -7.190788017 | L104: -2.788547031 | N104: -3.238383783e-08 | O104: -5.704065575e-08 | P104: 1.380002512e-08
E105: 1.164 | F105: 14.30358835 | G105: -7.020773938 | H105: -2.873819693 | J105: 14.30358832 | K105: -7.020773996 | L105: -2.87381968 | N105: -2.979551539e-08 | O105: -5.800993552e-08 | P105: 1.324987231e-08
E106: 1.176 | F106: 14.56714693 | G106: -6.847539946 | H106: -2.957032739 | J106: 14.56714691 | K106: -6.847540005 | L106: -2.957032726 | N106: -2.714372194e-08 | O106: -5.895145527e-08 | P106: 1.268107575e-08
E107: 1.188 | F107: 14.8210733 | G107: -6.671200941 | H107: -3.038148231 | J107: 14.82107328 | K107: -6.671201001 | L107: -3.038148219 | N107: -2.443010594e-08 | O107: -5.986410745e-08 | P107: 1.209393696e-08
E108: 1.2 | F108: 15.06526767 | G108: -6.491873115 | H108: -3.117129606 | J108: 15.06526765 | K108: -6.491873176 | L108: -3.117129594 | N108: -2.16563496e-08 | O108: -6.074679249e-08 | P108: 1.148876683e-08
E109: 1.212 | F109: 15.29963633 | G109: -6.309673821 | H109: -3.1939417 | J109: 15.29963631 | K109: -6.309673882 | L109: -3.193941689 | N109: -1.882422929e-08 | O109: -6.159844013e-08 | P109: 1.086590107e-08
E110: 1.224 | F110: 15.52409166 | G110: -6.124721497 | H110: -3.268550765 | J110: 15.52409164 | K110: -6.12472156 | L110: -3.268550755 | N110: -1.593556576e-08 | O110: -6.241799966e-08 | P110: 1.022569096e-08
E111: 1.236 | F111: 15.73855217 | G111: -5.937135601 | H111: -3.340924482 | J111: 15.73855215 | K111: -5.937135664 | L111: -3.340924472 | N111: -1.299221708e-08 | O111: -6.320443724e-08 | P111: 9.568497994e-09
E112: 1.248 | F112: 15.94294248 | G112: -5.747036527 | H112: -3.411031967 | J112: 15.94294247 | K112: -5.747036591 | L112: -3.411031958 | N112: -9.996140804e-09 | O112: -6.395675278e-08 | P112: 8.894710746e-09
E113: 1.26 | F113: 16.13719338 | G113: -5.55454554 | H113: -3.47884379 | J113: 16.13719337 | K113: -5.554545605 | L113: -3.478843782 | N113: -6.949317566e-09 | O113: -6.467395863e-08 | P113: 8.204724899e-09
E114: 1.272 | F114: 16.3212418 | G114: -5.359784697 | H114: -3.54433198 | J114: 16.3212418 | K114: -5.359784762 | L114: -3.544331973 | N114: -3.853784847e-09 | O114: -6.535510533e-08 | P114: 7.498957455e-09
E115: 1.284 | F115: 16.49503085 | G115: -5.162876775 | H115: -3.607470035 | J115: 16.49503085 | K115: -5.162876841 | L115: -3.607470028 | N115: -7.116511824e-10 | O115: -6.59992585e-08 | P115: 6.777838735e-09
E116: 1.296 | F116: 16.65850979 | G116: -4.963945198 | H116: -3.668232928 | J116: 16.65850979 | K116: -4.963945264 | L116: -3.668232922 | N116: 2.474948246e-09 | O116: -6.660551666e-08 | P116: 6.041814604e-09
E117: 1.308 | F117: 16.81163407 | G117: -4.763113959 | H117: -3.726597121 | J117: 16.81163407 | K117: -4.763114027 | L117: -3.726597116 | N117: 5.703810757e-09 | O117: -6.717300849e-08 | P117: 5.291348248e-09
E118: 1.32 | F118: 16.95436527 | G118: -4.560507553 | H118: -3.782540563 | J118: 16.95436528 | K118: -4.560507621 | L118: -3.782540558 | N118: 8.972701693e-09 | O118: -6.770088135e-08 | P118: 4.526913067e-09
E119: 1.332 | F119: 17.08667116 | G119: -4.356250895 | H119: -3.836042701 | J119: 17.08667117 | K119: -4.356250963 | L119: -3.836042697 | N119: 1.2279326e-08 | O119: -6.818832343e-08 | P119: 3.74900111e-09
E120: 1.344 | F120: 17.20852564 | G120: -4.150469252 | H120: -3.887084484 | J120: 17.20852565 | K120: -4.15046932 | L120: -3.887084481 | N120: 1.562136021e-08 | O120: -6.863453894e-08 | P120: 2.95811331e-09
E121: 1.356 | F121: 17.31990873 | G121: -3.943288166 | H121: -3.935648365 | J121: 17.31990875 | K121: -3.943288235 | L121: -3.935648363 | N121: 1.899643109e-08 | O121: -6.903877914e-08 | P121: 2.15477014e-09
E122: 1.368 | F122: 17.42080657 | G122: -3.734833384 | H122: -3.981718305 | J122: 17.4208066 | K122: -3.734833453 | L122: -3.981718304 | N122: 2.240213348e-08 | O122: -6.940031305e-08 | P122: 1.33949829e-09
E123: 1.38 | F123: 17.51121141 | G123: -3.525230781 | H123: -4.025279775 | J123: 17.51121144 | K123: -3.525230851 | L123: -4.025279775 | N123: 2.583600178e-08 | O123: -6.97184479e-08 | P123: 5.128439895e-10
E124: 1.392 | F124: 17.59112154 | G124: -3.31460629 | H124: -4.066319757 | J124: 17.59112157 | K124: -3.31460636 | L124: -4.066319757 | N124: 2.929556331e-08 | O124: -6.999252777e-08 | P124: -3.246380942e-10
E125: 1.404 | F125: 17.6605413 | G125: -3.103085826 | H125: -4.104826742 | J125: 17.66054133 | K125: -3.103085897 | L125: -4.104826743 | N125: 3.277829919e-08 | O125: -7.022191939e-08 | P125: -1.17238308e-09
E126: 1.416 | F126: 17.71948103 | G126: -2.890795219 | H126: -4.140790736 | J126: 17.71948107 | K126: -2.89079529 | L126: -4.140790738 | N126: 3.628165501e-08 | O126: -7.0406033e-08 | P126: -2.029810098e-09
E127: 1.428 | F127: 17.76795705 | G127: -2.677860137 | H127: -4.17420325 | J127: 17.76795709 | K127: -2.677860208 | L127: -4.174203253 | N127: 3.980305152e-08 | O127: -7.054430196e-08 | P127: -2.896332951e-09
E128: 1.44 | F128: 17.80599162 | G128: -2.464406017 | H128: -4.205057303 | J128: 17.80599166 | K128: -2.464406087 | L128: -4.205057307 | N128: 4.333988102e-08 | O128: -7.063620933e-08 | P128: -3.771349455e-09
E129: 1.452 | F129: 17.83361287 | G129: -2.250557992 | H129: -4.233347418 | J129: 17.83361292 | K129: -2.250558063 | L129: -4.233347423 | N129: 4.688951449e-08 | O129: -7.068125862e-08 | P129: -4.654252983e-09
E130: 1.464 | F130: 17.8508548 | G130: -2.036440826 | H130: -4.259069618 | J130: 17.85085485 | K130: -2.036440897 | L130: -4.259069624 | N130: 5.044928741e-08 | O130: -7.067899732e-08 | P130: -5.544421811e-09
E131: 1.476 | F131: 17.85775721 | G131: -1.822178836 | H131: -4.282221419 | J131: 17.85775726 | K131: -1.822178907 | L131: -4.282221426 | N131: 5.401652459e-08 | O131: -7.062901419e-08 | P131: -6.441229772e-09
E132: 1.488 | F132: 17.85436564 | G132: -1.60789583 | H132: -4.302801826 | J132: 17.85436569 | K132: -1.6078959 | L132: -4.302801834 | N132: 5.75885295e-08 | O132: -7.053091999e-08 | P132: -7.344040043e-09
E133: 1.5 | F133: 17.84073132 | G133: -1.393715032 | H133: -4.320811328 | J133: 17.84073139 | K133: -1.393715103 | L133: -4.320811336 | N133: 6.116257723e-08 | O133: -7.038437744e-08 | P133: -8.252206918e-09
E134: 1.512 | F134: 17.81691115 | G134: -1.179759022 | H134: -4.336251886 | J134: 17.81691122 | K134: -1.179759092 | L134: -4.336251896 | N134: 6.473594638e-08 | O134: -7.0189073e-08 | P134: -9.165079362e-09
E135: 1.524 | F135: 17.78296759 | G135: -0.966149659 | H135: -4.349126931 | J135: 17.78296766 | K135: -0.966149729 | L135: -4.349126941 | N135: 6.830589783e-08 | O135: -6.994474411e-08 | P135: -1.008200012e-08
E136: 1.536 | F136: =-2*$C$30*G136-$C$25^2*H136 -> 17.73896861 | G136: =-$C$30*H136-$C$31*$C$27*EXP(-$C$30*E136)*SIN($C$27*E136+$C$32) -> -0.7530080222 | H136: =$C$31*EXP(-$C$30*E136)*COS($C$27*E136+$C$32) -> -4.359441349 | J136: 17.73896868 | K136: -0.7530080918 | L136: -4.35944136 | N136: 7.18696711e-08 | O136: -6.965115329e-08 | P136: -1.100230307e-08
E137: =E136+$C$8 -> 1.548 | F137: 17.68498764 | G137: -0.5404543412 | H137: -4.367201476 | J137: 17.68498771 | K137: -0.5404544105 | L137: -4.367201488 | N137: 7.542450575e-08 | O137: -6.930810981e-08 | P137: -1.192531585e-08
E138: 1.56 | F138: 17.6211035 | G138: -0.3286079322 | H138: -4.372415083 | J138: 17.62110358 | K138: -0.3286080011 | L138: -4.372415095 | N138: 7.896762355e-08 | O138: -6.891546445e-08 | P138: -1.285035989e-08
E139: 1.572 | F139: 17.54740033 | G139: -0.1175871339 | H139: -4.375091369 | J139: 17.54740041 | K139: -0.1175872024 | L139: -4.375091382 | N139: 8.249625694e-08 | O139: -6.847309304e-08 | P139: -1.377675485e-08
E140: 1.584 | F140: 17.46396748 | G140: 0.09249075626 | H140: -4.375240946 | J140: 17.46396757 | K140: 0.09249068828 | L140: -4.37524096 | N140: 8.600763479e-08 | O140: -6.798092621e-08 | P140: -1.470381594e-08
E141: 1.596 | F141: 17.37089949 | G141: 0.3015095443 | H141: -4.372875827 | J141: 17.37089958 | K141: 0.3015094769 | L141: -4.372875843 | N141: 8.949897534e-08 | O141: -6.743891817e-08 | P141: -1.563085217e-08
E142: 1.608 | F142: 17.26829597 | G142: 0.5093542012 | H142: -4.368009413 | J142: 17.26829607 | K142: 0.5093541344 | L142: -4.36800943 | N142: =J142-F142 -> 9.296750747e-08 | O142: -6.68470771e-08 | P142: -1.655716986e-08
E143: 1.62 | F143: 17.15626154 | G143: 0.7159109234 | H143: -4.360656478 | J143: 17.15626164 | K143: 0.7159108572 | L143: -4.360656496 | N143: 9.641046006e-08 | O143: -6.62054358e-08 | P143: -1.748207179e-08
E144: 1.632 | F144: 17.03490574 | G144: 0.9210671921 | H144: -4.350833153 | J144: 17.03490584 | K144: 0.9210671266 | L144: -4.350833171 | N144: 9.98250691e-08 | O144: -6.551407705e-08 | P144: -1.840485897e-08
E145: 1.644 | F145: 16.90434292 | G145: 1.124711832 | H145: -4.338556912 | J145: 16.90434302 | K145: 1.124711768 | L145: -4.338556931 | N145: 1.032085883e-07 | O145: -6.477312309e-08 | P145: -1.932483418e-08
E146: 1.656 | F146: 16.76469219 | G146: 1.32673507 | H146: -4.323846555 | J146: 16.7646923 | K146: 1.326735006 | L146: -4.323846575 | N146: 1.065582715e-07 | O146: -6.398272312e-08 | P146: -2.024129486e-08
E147: 1.668 | F147: 16.61607732 | G147: 1.527028588 | H147: -4.30672219 | J147: 16.61607743 | K147: 1.527028525 | L147: -4.306722211 | N147: 1.098713831e-07 | O147: -6.314308232e-08 | P147: -2.115353759e-08
E148: 1.68 | F148: 16.45862663 | G148: 1.725485582 | H148: -4.287205215 | J148: 16.45862674 | K148: 1.725485519 | L148: -4.287205237 | N148: 1.131452194e-07 | O148: -6.225442895e-08 | P148: -2.206086158e-08
E149: 1.692 | F149: 16.29247289 | G149: 1.922000814 | H149: -4.265318303 | J149: 16.292473 | K149: 1.922000753 | L149: -4.265318326 | N149: 1.163770733e-07 | O149: -6.131704455e-08 | P149: -2.296256429e-08
E150: 1.704 | F150: 16.11775324 | G150: 2.116470667 | H150: -4.241085377 | J150: 16.11775336 | K150: 2.116470606 | L150: -4.241085401 | N150: 1.195642767e-07 | O150: -6.033123601e-08 | P150: -2.385794584e-08
E151: 1.716 | F151: 15.93460911 | G151: 2.308793193 | H151: -4.214531596 | J151: 15.93460923 | K151: 2.308793134 | L151: -4.214531621 | N151: 1.227041793e-07 | O151: -5.929735813e-08 | P151: -2.4746309e-08
E152: 1.728 | F152: 15.74318606 | G152: 2.498868169 | H152: -4.185683331 | J152: 15.74318618 | K152: 2.498868111 | L152: -4.185683357 | N152: 1.257941342e-07 | O152: -5.82158064e-08 | P152: -2.5626953e-08
E153: 1.74 | F153: 15.54363372 | G153: 2.686597141 | H153: -4.154568145 | J153: 15.54363385 | K153: 2.686597084 | L153: -4.154568171 | N153: 1.288315481e-07 | O153: -5.708700179e-08 | P153: -2.649918684e-08
E154: 1.752 | F154: 15.33610569 | G154: 2.871883475 | H154: -4.121214771 | J154: 15.33610582 | K154: 2.871883419 | L154: -4.121214798 | N154: 1.318138363e-07 | O154: -5.591141905e-08 | P154: -2.736231686e-08
E155: 1.764 | F155: 15.1207594 | G155: 3.054632404 | H155: -4.085653091 | J155: 15.12075954 | K155: 3.054632349 | L155: -4.085653119 | N155: 1.347384515e-07 | O155: -5.468955466e-08 | P155: -2.821565737e-08
E156: 1.776 | F156: 14.89775603 | G156: 3.234751072 | H156: -4.047914114 | J156: 14.89775617 | K156: 3.234751019 | L156: -4.047914143 | N156: 1.376028855e-07 | O156: -5.342195886e-08 | P156: -2.905852536e-08
E157: 1.788 | F157: 14.66726037 | G157: 3.412148579 | H157: -4.00802995 | J157: 14.66726051 | K157: 3.412148527 | L157: -4.00802998 | N157: 1.404046497e-07 | O157: -5.210920362e-08 | P157: -2.989024228e-08
E158: 1.8 | F158: 14.42944075 | G158: 3.586736025 | H158: -3.966033789 | J158: 14.42944089 | K158: 3.586735974 | L158: -3.966033819 | N158: 1.431413015e-07 | O158: -5.075190801e-08 | P158: -3.071013444e-08
E159: 1.812 | F159: 14.18446888 | G159: 3.758426548 | H159: -3.921959874 | J159: 14.18446902 | K159: 3.758426498 | L159: -3.921959905 | N159: 1.458104304e-07 | O159: -4.935072928e-08 | P159: -3.15175348e-08
E160: 1.824 | F160: 13.93251977 | G160: 3.927135368 | H160: -3.875843479 | J160: 13.93251992 | K160: 3.92713532 | L160: -3.875843511 | N160: 1.484096721e-07 | O160: -4.790634556e-08 | P160: -3.231178347e-08
E161: 1.836 | F161: 13.6737716 | G161: 4.092779825 | H161: -3.827720883 | J161: 13.67377175 | K161: 4.092779779 | L161: -3.827720916 | N161: 1.509367031e-07 | O161: -4.641948959e-08 | P161: -3.309222674e-08
E162: 1.848 | F162: 13.4084056 | G162: 4.255279415 | H162: -3.777629343 | J162: 13.40840576 | K162: 4.25527937 | L162: -3.777629377 | N162: 1.533892249e-07 | O162: -4.48909141e-08 | P162: -3.38582149e-08
E163: 1.86 | F163: 13.13660595 | G163: 4.414555825 | H163: -3.72560707 | J163: 13.1366061 | K163: 4.414555782 | L163: -3.725607104 | N163: 1.557650222e-07 | O163: -4.332141668e-08 | P163: -3.46091138e-08
E164: 1.872 | F164: 12.85855961 | G164: 4.570532971 | H164: -3.6716932 | J164: 12.85855977 | K164: 4.570532929 | L164: -3.671693236 | N164: 1.580618871e-07 | O164: -4.171182066e-08 | P164: -3.534428972e-08
E165: 1.884 | F165: 12.57445627 | G165: 4.723137027 | H165: -3.615927771 | J165: 12.57445643 | K165: 4.723136987 | L165: -3.615927807 | N165: 1.602776862e-07 | O165: -4.006298759e-08 | P165: -3.606312271e-08
E166: 1.896 | F166: 12.28448818 | G166: 4.872296462 | H166: -3.55835169 | J166: 12.28448834 | K166: 4.872296423 | L166: -3.558351727 | N166: 1.624103394e-07 | O166: -3.837581719e-08 | P166: -3.676500304e-08
E167: 1.908 | F167: 11.98885002 | G167: 5.017942063 | H167: -3.499006712 | J167: 11.98885019 | K167: 5.017942026 | L167: -3.499006749 | N167: 1.644577861e-07 | O167: -3.665122428e-08 | P167: -3.744932409e-08
E168: 1.92 | F168: 11.68773883 | G168: 5.16000697 | H168: -3.437935404 | J168: 11.68773899 | K168: 5.160006935 | L168: -3.437935442 | N168: 1.664180616e-07 | O168: -3.489017608e-08 | P168: -3.811549787e-08
E169: 1.932 | F169: 11.38135382 | G169: 5.298426699 | H169: -3.375181125 | J169: 11.38135399 | K169: 5.298426666 | L169: -3.375181164 | N169: 1.682892243e-07 | O169: -3.309365226e-08 | P169: -3.876294086e-08
E170: 1.944 | F170: 11.0698963 | G170: 5.433139171 | H170: -3.310787993 | J170: 11.06989647 | K170: 5.43313914 | L170: -3.310788032 | N170: 1.700694074e-07 | O170: -3.126268044e-08 | P170: -3.939108417e-08
E171: 1.956 | F171: 10.75356952 | G171: 5.564084733 | H171: -3.244800853 | J171: 10.75356969 | K171: 5.564084704 | L171: -3.244800893 | N171: 1.71756799e-07 | O171: -2.939830068e-08 | P171: -3.999937004e-08
E172: 1.968 | F172: 10.43257855 | G172: 5.691206183 | H172: -3.177265256 | J172: 10.43257872 | K172: 5.691206155 | L172: -3.177265296 | N172: 1.733496475e-07 | O172: -2.7501593e-08 | P172: -4.058725267e-08
E173: 1.98 | F173: 10.10713017 | G173: 5.814448789 | H173: -3.10822742 | J173: 10.10713034 | K173: 5.814448763 | L173: -3.108227462 | N173: 1.748462619e-07 | O173: -2.557366585e-08 | P173: -4.115419916e-08
E174: 1.992 | F174: 9.777432714 | G174: 5.93376031 | H174: -3.037734209 | J174: 9.77743289 | K174: 5.933760287 | L174: -3.037734251 | N174: 1.762450097e-07 | O174: -2.361564899e-08 | P174: -4.169968726e-08
E175: 2.004 | F175: 9.44369598 | G175: 6.049091016 | H175: -2.965833097 | J175: 9.443696157 | K175: 6.049090995 | L175: -2.965833139 | N175: 1.775443295e-07 | O175: -2.162870238e-08 | P175: -4.222321204e-08
E176: 2.016 | F176: 9.106131069 | G176: 6.160393701 | H176: -2.892572137 | J176: 9.106131248 | K176: 6.160393681 | L176: -2.89257218 | N176: 1.787427273e-07 | O176: -1.96140082e-08 | P176: -4.2724281e-08
E177: 2.028 | F177: 8.764950276 | G177: 6.267623698 | H177: -2.817999939 | J177: 8.764950456 | K177: 6.267623681 | L177: -2.817999982 | N177: 1.798387643e-07 | O177: -1.757278145e-08 | P177: -4.32024132e-08
E178: 2.04 | F178: 8.420366954 | G178: 6.370738897 | H178: -2.742165628 | J178: 8.420367135 | K178: 6.370738882 | L178: -2.742165672 | N178: 1.808310941e-07 | O178: -1.550625939e-08 | P178: -4.365714767e-08
E179: 2.052 | F179: 8.072595391 | G179: 6.469699752 | H179: -2.665118823 | J179: 8.072595573 | K179: 6.469699739 | L179: -2.665118867 | N179: 1.817184021e-07 | O179: -1.341568812e-08 | P179: -4.408803145e-08
E180: 2.064 | F180: 7.721850682 | G180: 6.564469294 | H180: -2.5869096 | J180: 7.721850864 | K180: 6.564469283 | L180: -2.586909644 | N180: 1.824994689e-07 | O180: -1.13023555e-08 | P180: -4.449463153e-08
E181: 2.076 | F181: 7.368348597 | G181: 6.655013139 | H181: -2.507588463 | J181: 7.36834878 | K181: 6.65501313 | L181: -2.507588508 | N181: 1.831731424e-07 | O181: -9.167561821e-09 | P181: -4.487652916e-08
E182: 2.088 | F182: 7.012305461 | G182: 6.741299496 | H182: -2.427206315 | J182: 7.012305644 | K182: 6.741299489 | L182: -2.42720636 | N182: 1.837383472e-07 | O182: -7.012626924e-09 | P182: -4.52333242e-08
E183: 2.1 | F183: 6.65393802 | G183: 6.823299173 | H183: -2.345814422 | J183: 6.653938204 | K183: 6.823299168 | L183: -2.345814468 | N183: 1.841940875e-07 | O183: -4.838897283e-09 | P183: -4.556463207e-08
E184: 2.112 | F184: 6.29346332 | G184: 6.90098558 | H184: -2.263464388 | J184: 6.293463505 | K184: 6.900985577 | L184: -2.263464434 | N184: 1.84539406e-07 | O184: -2.647729147e-09 | P184: -4.58700784e-08
E185: 2.124 | F185: 5.931098578 | G185: 6.974334732 | H185: -2.180208118 | J185: 5.931098763 | K185: 6.974334732 | L185: -2.180208164 | N185: 1.847734517e-07 | O185: -4.40500969e-10 | P185: -4.614931282e-08
E186: 2.136 | F186: 5.567061056 | G186: 7.043325254 | H186: -2.096097789 | J186: 5.56706124 | K186: 7.043325256 | L186: -2.096097836 | N186: 1.848954509e-07 | O186: 1.781390147e-09 | P186: -4.64020018e-08
E187: 2.148 | F187: 5.201567936 | G187: 7.107938375 | H187: -2.011185822 | J187: 5.201568121 | K187: 7.107938379 | L187: -2.011185868 | N187: 1.849046951e-07 | O187: 4.016532884e-09 | P187: -4.662782693e-08
E188: 2.16 | F188: 4.8348362 | G188: 7.16815793 | H188: -1.925524843 | J188: 4.834836384 | K188: 7.168157937 | L188: -1.92552489 | N188: 1.848005642e-07 | O188: 6.263499941e-09 | P188: -4.682649113e-08
E189: 2.172 | F189: 4.467082498 | G189: 7.223970356 | H189: -1.83916766 | J189: 4.467082683 | K189: 7.223970365 | L189: -1.839167707 | N189: 1.845824888e-07 | O189: 8.520856909e-09 | P189: -4.699770773e-08
E190: 2.184 | F190: 4.098523033 | G190: 7.275364687 | H190: -1.752167227 | J190: 4.098523218 | K190: 7.275364698 | L190: -1.752167274 | N190: 1.842500055e-07 | O190: 1.078714806e-08 | P190: -4.714121626e-08
E191: 2.196 | F191: 3.729373436 | G191: 7.322332549 | H191: -1.664576614 | J191: 3.72937362 | K191: 7.322332562 | L191: -1.664576661 | N191: 1.83802725e-07 | O191: 1.306090791e-08 | P191: -4.725677205e-08
E192: 2.208 | F192: 3.359848642 | G192: 7.364868149 | H192: -1.576448975 | J192: 3.359848825 | K192: 7.364868164 | L192: -1.576449023 | N192: 1.832403429e-07 | O192: 1.53406603e-08 | P192: -4.734415171e-08
E193: 2.22 | F193: 2.990162773 | G193: 7.402968272 | H193: -1.487837521 | J193: 2.990162956 | K193: 7.402968289 | L193: -1.487837568 | N193: 1.825626015e-07 | O193: 1.762492463e-08 | P193: -4.740314274e-08
E194: 2.232 | F194: 2.620529021 | G194: 7.436632264 | H194: -1.398795482 | J194: 2.620529203 | K194: 7.436632284 | L194: -1.398795529 | N194: 1.817693551e-07 | O194: 1.991220344e-08 | P194: -4.743355908e-08
E195: 2.244 | F195: 2.251159524 | G195: 7.465862026 | H195: -1.309376083 | J195: 2.251159704 | K195: 7.465862048 | L195: -1.309376131 | N195: 1.808605332e-07 | O195: 2.220099748e-08 | P195: -4.743523307e-08
E196: 2.256 | F196: 1.882265253 | G196: 7.490661994 | H196: -1.219632513 | J196: 1.882265432 | K196: 7.490662018 | L196: -1.21963256 | N196: 1.798361451e-07 | O196: 2.448979775e-08 | P196: -4.740801596e-08
E197: 2.268 | F197: 1.514055896 | G197: 7.511039131 | H197: -1.129617887 | J197: 1.514056075 | K197: 7.511039158 | L197: -1.129617935 | N197: 1.786962875e-07 | O197: 2.67770881e-08 | P197: -4.735178072e-08
E198: 2.28 | F198: 1.146739745 | G198: 7.527002908 | H198: -1.039385227 | J198: 1.146739923 | K198: 7.527002937 | L198: -1.039385274 | N198: 1.774411036e-07 | O198: 2.906135776e-08 | P198: -4.726641167e-08
E199: 2.292 | F199: 0.7805235793 | G199: 7.538565285 | H199: -0.9489874234 | J199: 0.7805237554 | K199: 7.538565317 | L199: -0.9489874705 | N199: 1.760708548e-07 | O199: 3.134107818e-08 | P199: -4.715182156e-08
E200: 2.304 | F200: =-2*$C$30*G200-$C$25^2*H200 -> 0.415612556 | G200: =-$C$30*H200-$C$31*$C$27*EXP(-$C$30*E200)*SIN($C$27*E200+$C$32) -> 7.545740695 | H200: =$C$31*EXP(-$C$30*E200)*COS($C$27*E200+$C$32) -> -0.8584772085 | J200: 0.4156127306 | K200: 7.545740729 | L200: -0.8584772555 | N200: 1.745858711e-07 | O200: 3.361472789e-08 | P200: -4.700794054e-08
... 308 more rows

Sheet 臨界減衰
A1: 振動の運動方程式
A2: mx''+cx'+kx=-sign(x')μ'mg+fsinΩt | F2: 臨界減衰 | J2: マクロで計算➡ | L2: exe("ルンゲ･クッタ･ギル法","ForcedOscillation",C8:C18,J8:L8)
A3: x''=-(c/m)x'-(k/m)x-sign(x')(μ'g)+(f/m)sinΩt | J3: マクロは標準モジュール-Module6 の中。 実行させるには =exe(･･･ と先頭に＝を付加する。
A4: ダンパ＋バネ＋動摩擦＋外力 | G4: 解析解 | K4: 数値積分 | O4: 理論値との差
E5: 時間 | F5: 加速度 | G5: 速度 | H5: 変位 | J5: 加速度 | K5: 速度 | L5: 変位 | N5: 加速度 | O5: 速度 | P5: 変位
E6: t | F6: 理論値x'' | G6: 理論値x' | H6: 理論値x | J6: x'' | K6: x' | L6: x | N6: x'' | O6: x' | P6: x
E7: [s] | F7: [m/s^2] | G7: [m/s] | H7: [m] | J7: [m/s^2] | K7: [m/s] | L7: [m] | N7: [m/s^2] | O7: [m/s] | P7: [m]
A8: 時間間隔 | B8: Δt | C8: =C9/500 -> 0.012 | D8: [s] | E8: 0 | F8: =-2*$C$25*G8-$C$25^2*H8 -> -24 | G8: =$C$32*EXP(-$C$25*E8)-$C$25*H8 -> 0 | H8: =($C$31+$C$32*E8)*EXP(-$C$25*E8) -> 6 | J8: -24 | K8: 0 | L8: 6 | N8: =J8-F8 -> 0 | O8: =K8-G8 -> 0 | P8: 0
A9: 終了時間 | B9: TL | C9: 6 | D9: [s] | E9: =E8+$C$8 -> 0.012 | F9: -22.86851647 | G9: -0.2811702844 | H9: 5.998299401 | J9: -22.86851647 | K9: -0.2811702804 | L9: 5.998299399 | N9: =J9-F9 -> -9.510731758e-09 | O9: 3.962277728e-09 | P9: -1.584594678e-09
A10: 重力加速度 | B10: g | C10: 9.8 | D10: [m/s^2] | E10: 0.024 | F10: -21.77720077 | G10: -0.5490050614 | H10: 5.993305253 | J10: -21.77720079 | K10: -0.5490050537 | L10: 5.99330525 | N10: -1.849605624e-08 | O10: 7.69946551e-09 | P10: -3.075451893e-09
A11: 質量 | B11: m | C11: 1 | D11: [kg] | E11: 0.036 | F11: -20.72478411 | G11: -0.803978694 | H11: 5.985174722 | J11: -20.72478414 | K11: -0.8039786828 | L11: 5.985174717 | N11: -2.697729684e-08 | O11: 1.122089066e-08 | P11: -4.476566673e-09
A12: 粘性係数 | B12: c | C12: 4 | D12: [Ns/m] | E12: 0.048 | F12: -19.71003529 | G12: -1.046550547 | H12: 5.97405937 | J12: -19.71003533 | K12: -1.046550532 | L12: 5.974059364 | N12: -3.497503798e-08 | O12: 1.453554677e-08 | P12: -5.791787494e-09
A13: バネ定数 | B13: k | C13: 4 | D13: [N/m] | E13: 0.06 | F13: -18.73175962 | G13: -1.277165429 | H13: 5.960105335 | J13: -18.73175967 | K13: -1.277165411 | L13: 5.960105328 | N13: =J13-F13 -> -4.25091109e-08 | O13: =K13-G13 -> 1.76520969e-08 | P13: =L13-H13 -> -7.024818949e-09
A14: 動摩擦係数 | B14: μ' | C14: 0 | D14: [ND] | E14: 0.072 | F14: -17.7887979 | G14: -1.496254029 | H14: 5.943453503 | J14: -17.78879795 | K14: -1.496254008 | L14: 5.943453494 | N14: =J14-F14 -> -4.959867184e-08 | O14: 2.057889903e-08 | P14: -8.179230626e-09
A15: 強制力 | B15: f | C15: 0 | D15: [N] | E15: 0.084 | F15: -16.88002537 | G15: -1.704233331 | H15: 5.924239673 | J15: -16.88002543 | K15: -1.704233307 | L15: 5.924239664 | N15: -5.626214161e-08 | O15: 2.332399451e-08 | P15: -9.258458888e-09
A16: 強制力角速度 | B16: Ω | C16: 0 | D16: [rad/s] | E16: 0.096 | F16: -16.00435079 | G16: -1.901507025 | H16: 5.902594723 | J16: -16.00435086 | K16: -1.901506999 | L16: 5.902594713 | N16: -6.251732287e-08 | O16: 2.589514159e-08 | P16: -1.026581042e-08
A17: 初期位置 | B17: x0 | C17: 6 | D17: [m] | E17: 0.108 | F17: -15.16071544 | G17: -2.088465902 | H17: 5.878644762 | J17: -15.16071551 | K17: -2.088465874 | L17: 5.878644751 | N17: -6.838135569e-08 | O17: 2.82998065e-08 | P17: -1.120446758e-08
A18: 初期速度 | B18: x'0 | C18: 0 | D18: [m/s] | E18: 0.12 | F18: -14.34809219 | G18: -2.26548824 | H18: 5.852511286 | J18: -14.34809226 | K18: -2.265488209 | L18: 5.852511274 | N18: -7.387076018e-08 | O18: 3.054518727e-08 | P18: -1.207749722e-08
E19: 0.132 | F19: -13.5654846 | G19: -2.432940174 | H19: 5.824311325 | J19: -13.56548468 | K19: -2.432940141 | L19: 5.824311312 | N19: -7.900146493e-08 | O19: 3.263821435e-08 | P19: -1.288784812e-08
B20: c/m | C20: =C12/C11 -> 4 | D20: [1/s] | E20: 0.144 | F20: -12.81192609 | G20: -2.591176063 | H20: 5.794157585 | J20: -12.81192617 | K20: -2.591176028 | L20: 5.794157571 | N20: -8.378881233e-08 | O20: 3.458555664e-08 | P20: -1.363835356e-08
B21: k/m | C21: =C13/C11 -> 4 | D21: [1/s^2] | E21: 0.156 | F21: -12.08647899 | G21: -2.740538842 | H21: 5.76215859 | J21: -12.08647908 | K21: -2.740538805 | L21: 5.762158576 | N21: -8.824759234e-08 | O21: 3.639364365e-08 | P21: -1.433174557e-08
B22: μ'g | C22: =C14*C10 -> 0 | D22: [s^2/m] | E22: 0.168 | F22: -11.38823381 | G22: -2.881360363 | H22: 5.728418816 | J22: -11.38823391 | K22: -2.881360325 | L22: 5.728418801 | N22: -9.239204779e-08 | O22: 3.806865978e-08 | P22: -1.497064783e-08
B23: f/m | C23: =C15/C11 -> 0 | D23: [N/m] | E23: 0.18 | F23: -10.71630837 | G23: -3.013961729 | H23: 5.693038821 | J23: -10.71630846 | K23: -3.013961689 | L23: 5.693038805 | N23: -9.623590458e-08 | O23: 3.961656336e-08 | P23: -1.555758722e-08
A24: 振動中心 | B24: p＝mg/k | C24: =C11*C10/C13 -> 2.45 | D24: [m] | E24: 0.192 | F24: -10.06984702 | G24: -3.138653616 | H24: 5.656115371 | J24: -10.06984712 | K24: -3.138653575 | L24: 5.656115355 | N24: -9.979236815e-08 | O24: 4.104308138e-08 | P24: -1.609498934e-08
A25: 固有角振動数 | B25: ω＝√(k/m) | C25: =SQRT(C13/C11) -> 2 | D25: ［rad/s］ | E25: 0.204 | F25: -9.44801991 | G25: -3.255736591 | H25: 5.617741568 | J25: -9.448020013 | K25: -3.255736548 | L25: 5.617741552 | N25: -1.030741803e-07 | O25: 4.23537343e-08 | P25: -1.658518922e-08
A26: 〝 | B26: 〝 | C26: =DEGREES(C25) -> 114.591559 | D26: [deg/s] | E26: 0.216 | F26: -8.850022223 | G26: -3.365501409 | H26: 5.578006964 | J26: -8.850022329 | K26: -3.365501365 | L26: 5.578006947 | N26: -1.060935926e-07 | O26: 4.355382943e-08 | P26: -1.703043129e-08
A27: 減衰固有角振動数 | B27: ωd＝ω√(1-ζ^2) | C27: =C25*SQRT(1-C29^2) -> 0 | D27: ［rad/s］ | E27: 0.228 | F27: -8.275073457 | G27: -3.468229317 | H27: 5.536997681 | J27: -8.275073566 | K27: -3.468229272 | L27: 5.536997663 | N27: -1.088624035e-07 | O27: 4.464847381e-08 | P27: -1.743287292e-08
A28: 〝 | B28: 〝 | C28: =DEGREES(C27) -> 0 | D28: [deg/s] | E28: 0.24 | F28: -7.72241673 | G28: -3.564192337 | H28: 5.494796519 | J28: -7.722416841 | K28: -3.564192291 | L28: 5.494796501 | N28: -1.113919676e-07 | O28: 4.564257727e-08 | P28: -1.779458536e-08
A29: 減衰比 | B29: ζ＝c/{2√(mk)} | C29: =C12/(2*SQRT(C11*C13)) -> 1 | D29: [ND] | E29: 0.252 | F29: -7.191318094 | G29: -3.653653548 | H29: 5.451483071 | J29: -7.191318207 | K29: -3.653653501 | L29: 5.451483053 | N29: -1.136932237e-07 | O29: 4.65408676e-08 | P29: -1.811756167e-08
A30: 減衰率 | B30: γ＝ζω | C30: =C29*C25 -> 2 | E30: 0.264 | F30: -6.681065875 | G30: -3.736867354 | H30: 5.407133823 | J30: -6.681065991 | K30: -3.736867306 | L30: 5.407133804 | N30: -1.157767038e-07 | O30: 4.734788828e-08 | P30: -1.840371233e-08
A31: 振幅 | B31: A | C31: =C17 -> 6 | D31: [m] | E31: 0.276 | F31: -6.190970031 | G31: -3.814079751 | H31: 5.361822259 | J31: -6.190970149 | K31: -3.814079703 | L31: 5.36182224 | N31: -1.176525295e-07 | O31: 4.806801002e-08 | P31: -1.865487764e-08
B32: B | C32: =C18+C25*C17 -> 12 | D32: [m/s] | E32: 0.288 | F32: -5.720361522 | G32: -3.885528581 | H32: 5.315618962 | J32: -5.720361642 | K32: -3.885528532 | L32: 5.315618943 | N32: -1.1933043e-07 | O32: 4.870542636e-08 | P32: -1.887281886e-08
A33: 初期位相 | B33: α＝0 | C33: =ATAN2($C$17,-($C$18+$C$29*$C$25*$C$17)/($C$25*SQRT(1-$C$29^2))) ->  | D33: [rad] | E33: 0.3 | F33: -5.268591707 | G33: -3.95144378 | H33: 5.268591707 | J33: -5.268591827 | K33: -3.951443731 | L33: 5.268591687 | N33: -1.208197951e-07 | O33: 4.926418207e-08 | P33: -1.90592333e-08
A34: 〝 | B34: 〝 | C34: =DEGREES(C33) ->  | D34: [deg] | E34: 0.312 | F34: -4.835031746 | G34: -4.012047619 | H34: 5.220805556 | J34: -4.835031868 | K34: -4.012047569 | L34: 5.220805536 | N34: -1.221296273e-07 | O34: 4.974815493e-08 | P34: -1.92157481e-08
A35: A＝x0 | E35: 0.324 | F35: -4.419072034 | G35: -4.06755494 | H35: 5.172322949 | J35: -4.419072157 | K35: -4.06755489 | L35: 5.172322929 | N35: -1.232685989e-07 | O35: 5.016107085e-08 | P35: -1.934392113e-08
A36: B＝x'0＋ωx0 | E36: 0.336 | F36: -4.020121635 | G36: -4.118173383 | H36: 5.123203792 | J36: -4.02012176 | K36: -4.118173332 | L36: 5.123203772 | N36: -1.242450409e-07 | O36: 5.050651453e-08 | P36: -1.94452543e-08
E37: 0.348 | F37: -3.637607745 | G37: -4.164103603 | H37: 5.07350554 | J37: -3.63760787 | K37: -4.164103552 | L37: 5.07350552 | N37: -1.250669683e-07 | O37: 5.07879232e-08 | P37: -1.952118112e-08
E38: 0.36 | F38: -3.27097516 | G38: -4.205539491 | H38: 5.023283282 | J38: -3.270975286 | K38: -4.20553944 | L38: 5.023283262 | N38: -1.257420763e-07 | O38: 5.10086009e-08 | P38: -1.957308182e-08
A39: 減衰振動解析解 | E39: 0.372 | F39: -2.919685765 | G39: -4.242668378 | H39: 4.972589819 | J39: -2.919685892 | K39: -4.242668326 | L39: 4.972589799 | N39: -1.262777722e-07 | O39: 5.117172108e-08 | P39: -1.960227802e-08
A40: x''+2ζωx'+ω^2x=0 | C40: 運動方程式 | E40: 0.384 | F40: -2.583218037 | G40: -4.275671234 | H40: 4.921475744 | J40: -2.583218164 | K40: -4.275671183 | L40: 4.921475724 | N40: -1.266811722e-07 | O40: 5.12803302e-08 | P40: -1.961003715e-08
A41: x＝(A＋Bt)e^(－ωt) | C41: 解析解 | E41: 0.396 | F41: -2.26106656 | G41: -4.304722873 | H41: 4.869989513 | J41: -2.261066687 | K41: -4.304722822 | L41: 4.869989494 | N41: -1.269590975e-07 | O41: 5.133734771e-08 | P41: -1.959757334e-08
A42: x'＝Be^(－ωt)－ωx | E42: 0.408 | F42: -1.952741551 | G42: -4.329992136 | H42: 4.818177524 | J42: -1.952741678 | K42: -4.329992084 | L42: 4.818177504 | N42: -1.271181134e-07 | O42: 5.134558112e-08 | P42: -1.956605278e-08
A43: x''＝－2ωx'－ω^2x | E43: 0.42 | F43: =-2*$C$25*G43-$C$25^2*H43 -> -1.65776841 | G43: -4.351642076 | H43: =($C$31+$C$32*E43)*EXP(-$C$25*E43) -> 4.766084179 | J43: -1.657768537 | K43: -4.351642025 | L43: 4.766084159 | N43: -1.271645189e-07 | O43: 5.130771807e-08 | P43: -1.951658835e-08
E44: 0.432 | F44: =-2*$C$25*G44-$C$25^2*H44 -> -1.375687267 | G44: -4.369830144 | H44: =($C$31+$C$32*E44)*EXP(-$C$25*E44) -> 4.71375196 | J44: -1.375687395 | K44: -4.369830092 | L44: 4.713751941 | N44: -1.27104375e-07 | O44: 5.122634317e-08 | P44: -1.945024941e-08
E45: 0.444 | F45: -1.106052558 | G45: -4.384708354 | H45: 4.661221494 | J45: -1.106052685 | K45: -4.384708303 | L45: 4.661221475 | N45: -1.269434797e-07 | O45: 5.11039282e-08 | P45: -1.936805827e-08
E46: 0.456 | F46: -0.848432598 | G46: -4.396423462 | H46: 4.608531612 | J46: -0.8484327247 | K46: -4.396423411 | L46: 4.608531592 | N46: -1.266874108e-07 | O46: 5.094284816e-08 | P46: -1.927099547e-08
E47: 0.468 | F47: -0.602409179 | G47: -4.405117121 | H47: 4.555719416 | J47: -0.6024093053 | K47: -4.40511707 | L47: 4.555719397 | N47: -1.263415079e-07 | O47: 5.074537412e-08 | P47: -1.915999714e-08
E48: 0.48 | F48: -0.3675771705 | G48: -4.410926046 | H48: 4.502820339 | J48: -0.3675772964 | K48: -4.410925996 | L48: 4.50282032 | N48: -1.259109084e-07 | O48: 5.051368923e-08 | P48: -1.903596214e-08
E49: 0.492 | F49: -0.1435441355 | G49: -4.413982168 | H49: 4.449868201 | J49: -0.1435442609 | K49: -4.413982117 | L49: 4.449868183 | N49: -1.25400522e-07 | O49: 5.024987804e-08 | P49: -1.889974754e-08
A50: 過減衰 | B50: ζ>1 | C50: =IF($C$29>1,"'過減衰","") ->  | E50: 0.504 | F50: 0.07007004412 | G50: -4.41441278 | H50: 4.396895268 | J50: 0.0700699193 | K50: -4.41441273 | L50: 4.39689525 | N50: -1.248150774e-07 | O50: 4.995594072e-08 | P50: -1.875217137e-08
A51: 臨界減衰 | B51: ζ=1 | C51: =IF($C$29=1,"'臨界減衰","") -> '臨界減衰 | E51: 0.516 | F51: 0.273633531 | G51: -4.412340688 | H51: 4.343932305 | J51: 0.2736334069 | K51: -4.412340638 | L51: 4.343932286 | N51: -1.241591008e-07 | O51: 4.963379485e-08 | P51: -1.859401966e-08
A52: 減衰振動 | B52: 0<ζ<1 | C52: =IF(AND(0<$C$29,$C$29<1),"'減衰振動","") ->  | E52: 0.528 | F52: 0.4675028856 | G52: -4.40788435 | H52: 4.291008628 | J52: 0.4675027621 | K52: -4.407884301 | L52: 4.29100861 | N52: -1.234369087e-07 | O52: 4.92852692e-08 | P52: -1.842604203e-08
A53: 単振動 | B53: ζ=0 | C53: =IF($C$29=0,"単振動","") ->  | E53: 0.54 | F53: 0.6520234092 | G53: -4.401158012 | H53: 4.23815216 | J53: 0.6520232866 | K53: -4.401157963 | L53: 4.238152142 | N53: -1.226526685e-07 | O53: 4.891212146e-08 | P53: -1.824895435e-08
E54: 0.552 | F54: 0.8275294779 | G54: -4.392271844 | H54: 4.185389475 | J54: 0.8275293561 | K54: -4.392271796 | L54: 4.185389457 | N54: -1.218103449e-07 | O54: 4.851602409e-08 | P54: -1.806343786e-08
E55: 0.564 | F55: 0.9943448661 | G55: -4.381332066 | H55: 4.13274585 | J55: 0.9943447452 | K55: -4.381332018 | L55: 4.132745832 | N55: -1.209137572e-07 | O55: 4.809858822e-08 | P55: -1.787014892e-08
E56: 0.576 | F56: 1.152783061 | G56: -4.368441075 | H56: 4.08024531 | J56: 1.152782942 | K56: -4.368441027 | L56: 4.080245292 | N56: -1.199665469e-07 | O56: 4.766134243e-08 | P56: -1.76697057e-08
E57: 0.588 | F57: 1.303147571 | G57: -4.353697566 | H57: 4.027910674 | J57: 1.303147452 | K57: -4.353697519 | L57: 4.027910656 | N57: -1.189722028e-07 | O57: 4.720575753e-08 | P57: -1.746270684e-08
E58: 0.6 | F58: 1.445732217 | G58: -4.337196652 | H58: 3.975763597 | J58: 1.445732099 | K58: -4.337196605 | L58: 3.97576358 | N58: -1.179340607e-07 | O58: 4.673323062e-08 | P58: -1.724971543e-08
E59: 0.612 | F59: 1.580821428 | G59: -4.319029974 | H59: 3.923824616 | J59: 1.580821311 | K59: -4.319029927 | L59: 3.923824599 | N59: -1.168553236e-07 | O59: 4.624510463e-08 | P59: -1.703127372e-08
E60: 0.624 | F60: 1.708690517 | G60: -4.299285817 | H60: 3.872113187 | J60: 1.708690401 | K60: -4.299285771 | L60: 3.872113171 | N60: -1.157390361e-07 | O60: 4.574265233e-08 | P60: -1.68078933e-08
E61: 0.636 | F61: 1.829605953 | G61: -4.278049215 | H61: 3.820647726 | J61: 1.829605839 | K61: -4.278049169 | L61: 3.82064771 | N61: -1.145881257e-07 | O61: 4.522709762e-08 | P61: -1.658006621e-08
E62: 0.648 | F62: 1.94382563 | G62: -4.255402056 | H62: 3.769445648 | J62: 1.943825517 | K62: -4.255402011 | L62: 3.769445632 | N62: -1.134053722e-07 | O62: 4.469960047e-08 | P62: -1.634825741e-08
E63: 0.66 | F63: 2.051599119 | G63: -4.231423183 | H63: 3.718523403 | J63: 2.051599007 | K63: -4.231423139 | L63: 3.718523387 | N63: -1.121934403e-07 | O63: 4.416127108e-08 | P63: -1.611291101e-08
E64: 0.672 | F64: 2.15316792 | G64: -4.206188494 | H64: 3.667896515 | J64: 2.153167809 | K64: -4.206188451 | L64: 3.667896499 | N64: -1.109548702e-07 | O64: 4.361316552e-08 | P64: -1.587444798e-08
E65: 0.684 | F65: 2.248765704 | G65: -4.179771036 | H65: 3.61757961 | J65: 2.248765594 | K65: -4.179770993 | L65: 3.617579595 | N65: -1.096921025e-07 | O65: 4.305629542e-08 | P65: -1.563326979e-08
E66: 0.696 | F66: 2.338618549 | G66: -4.152241096 | H66: 3.567586459 | J66: 2.33861844 | K66: -4.152241054 | L66: 3.567586444 | N66: -1.084074412e-07 | O66: 4.249161645e-08 | P66: -1.538975614e-08
E67: 0.708 | F67: 2.422945168 | G67: -4.123666295 | H67: 3.517930003 | J67: 2.422945061 | K67: -4.123666253 | L67: 3.517929988 | N67: -1.071030926e-07 | O67: 4.192004255e-08 | P67: -1.514426939e-08
E68: 0.72 | F68: 2.501957132 | G68: -4.09411167 | H68: 3.468622387 | J68: 2.501957026 | K68: -4.094111629 | L68: 3.468622372 | N68: -1.057811634e-07 | O68: 4.134244236e-08 | P68: -1.489715151e-08
E69: 0.732 | F69: 2.575859085 | G69: -4.063639763 | H69: 3.419674992 | J69: 2.57585898 | K69: -4.063639722 | L69: 3.419674977 | N69: -1.044436608e-07 | O69: 4.075964366e-08 | P69: -1.464872845e-08
E70: 0.744 | F70: 2.644848953 | G70: -4.032310699 | H70: 3.371098461 | J70: 2.64484885 | K70: -4.032310659 | L70: 3.371098447 | N70: -1.030924892e-07 | O70: 4.017242894e-08 | P70: -1.439930664e-08
E71: 0.756 | F71: 2.709118151 | G71: -4.00018227 | H71: 3.322902732 | J71: 2.709118049 | K71: -4.00018223 | L71: 3.322902718 | N71: -1.017294817e-07 | O71: 3.958154959e-08 | P71: -1.414917916e-08
E72: 0.768 | F72: 2.768851775 | G72: =$C$32*EXP(-$C$25*E72)-$C$25*H72 -> -3.967310005 | H72: 3.275097062 | J72: 2.768851674 | K72: -3.967309966 | L72: 3.275097048 | N72: -1.003563579e-07 | O72: 3.898770906e-08 | P72: -1.389861959e-08
E73: =E72+$C$8 -> 0.78 | F73: 2.824228797 | G73: -3.933747253 | H73: 3.227690054 | J73: 2.824228698 | K73: -3.933747214 | L73: 3.22769004 | N73: -9.897476438e-08 | O73: 3.839158147e-08 | P73: -1.364789037e-08
E74: 0.792 | F74: 2.875422253 | G74: -3.899545248 | H74: 3.180689684 | J74: 2.875422156 | K74: -3.89954521 | L74: 3.180689671 | N74: -9.758626085e-08 | O74: 3.779380142e-08 | P74: -1.339723621e-08
E75: 0.804 | F75: 2.922599422 | G75: -3.864753183 | H75: 3.134103328 | J75: 2.922599326 | K75: -3.864753146 | L75: 3.134103315 | N75: -9.619233055e-08 | O75: 3.719497421e-08 | P75: -1.314689158e-08
E76: 0.816 | F76: 2.965922001 | G76: -3.829418279 | H76: 3.087937779 | J76: 2.965921906 | K76: -3.829418243 | L76: 3.087937766 | N76: -9.479438567e-08 | O76: 3.659566916e-08 | P76: -1.289707274e-08
E77: 0.828 | F77: 3.005546275 | G77: -3.793585848 | H77: 3.042199279 | J77: 3.005546182 | K77: -3.793585812 | L77: 3.042199266 | N77: -9.33937585e-08 | O77: 3.599642762e-08 | P77: -1.264798799e-08
E78: 0.84 | F78: 3.041623289 | G78: -3.757299357 | H78: 2.996893535 | J78: 3.041623197 | K78: -3.757299322 | L78: 2.996893522 | N78: =J78-F78 -> -9.199171203e-08 | O78: 3.539775806e-08 | P78: -1.239983005e-08
E79: 0.852 | F79: 3.074298999 | G79: -3.720600493 | H79: 2.952025744 | J79: 3.074298909 | K79: -3.720600459 | L79: 2.952025731 | N79: -9.058945771e-08 | O79: 3.480014676e-08 | P79: -1.215278234e-08
E80: 0.864 | F80: 3.103714437 | G80: -3.683529221 | H80: 2.907600612 | J80: 3.103714347 | K80: -3.683529187 | L80: 2.9076006 | N80: -8.918812e-08 | O80: 3.42040436e-08 | P80: -1.19070136e-08
E81: 0.876 | F81: 3.130005855 | G81: -3.646123842 | H81: 2.863622378 | J81: 3.130005768 | K81: -3.646123809 | L81: 2.863622367 | N81: -8.778877891e-08 | O81: 3.360988199e-08 | P81: -1.166268726e-08
E82: 0.888 | F82: 3.153304881 | G82: -3.60842105 | H82: 2.82009483 | J82: 3.153304795 | K82: -3.608421017 | L82: 2.820094818 | N82: -8.63924452e-08 | O82: 3.301806251e-08 | P82: -1.141995121e-08
E83: 0.9 | F83: 3.173738654 | G83: -3.570455986 | H83: 2.777021322 | J83: 3.173738569 | K83: -3.570455953 | L83: 2.777021311 | N83: -8.500007809e-08 | O83: 3.242896573e-08 | P83: -1.117894621e-08
E84: 0.912 | F84: 3.191429965 | G84: -3.532262291 | H84: 2.7344048 | J84: 3.191429881 | K84: -3.53226226 | L84: 2.734404789 | N84: -8.361257642e-08 | O84: 3.184294783e-08 | P84: -1.093980373e-08
E85: 0.924 | F85: 3.206497395 | G85: -3.493872161 | H85: 2.692247813 | J85: 3.206497313 | K85: -3.49387213 | L85: 2.692247802 | N85: -8.223079995e-08 | O85: 3.126034498e-08 | P85: -1.070264499e-08
E86: 0.936 | F86: 3.219055441 | G86: -3.455316391 | H86: 2.650552531 | J86: 3.21905536 | K86: -3.45531636 | L86: 2.65055252 | N86: -8.085553915e-08 | O86: 3.068146759e-08 | P86: -1.04675828e-08
E87: 0.948 | F87: 3.229214647 | G87: -3.416624426 | H87: 2.609320764 | J87: 3.229214568 | K87: -3.416624396 | L87: 2.609320754 | N87: -7.948754899e-08 | O87: 3.010661054e-08 | P87: -1.023472329e-08
E88: 0.96 | F88: 3.237081724 | G88: -3.377824407 | H88: 2.568553977 | J88: 3.237081646 | K88: -3.377824378 | L88: 2.568553967 | N88: -7.812753999e-08 | O88: 2.953604739e-08 | P88: -1.000416239e-08
E89: 0.972 | F89: 3.242759671 | G89: -3.33894322 | H89: 2.528253303 | J89: 3.242759594 | K89: -3.338943191 | L89: 2.528253293 | N89: -7.677616942e-08 | O89: 2.897003348e-08 | P89: -9.775991128e-09
E90: 0.984 | F90: 3.246347891 | G90: -3.300006534 | H90: 2.488419561 | J90: 3.246347816 | K90: -3.300006505 | L90: 2.488419552 | N90: -7.5434059e-08 | O90: 2.840880597e-08 | P90: -9.550291225e-09
E91: 0.996 | F91: 3.247942304 | G91: -3.261038846 | H91: 2.44905327 | J91: 3.24794223 | K91: -3.261038818 | L91: 2.44905326 | N91: -7.410178782e-08 | O91: 2.785258468e-08 | P91: -9.327137729e-09
E92: 1.008 | F92: 3.247635456 | G92: -3.222063523 | H92: 2.410154659 | J92: 3.247635383 | K92: -3.222063496 | L92: 2.41015465 | N92: -7.277989411e-08 | O92: 2.730157522e-08 | P92: -9.106601695e-09
E93: 1.02 | F93: 3.245516624 | G93: -3.183102842 | H93: 2.371723686 | J93: 3.245516552 | K93: -3.183102816 | L93: 2.371723678 | N93: -7.146888414e-08 | O93: 2.675596544e-08 | P93: -8.888744407e-09
E94: 1.032 | F94: 3.24167192 | G94: -3.144178027 | H94: 2.333760047 | J94: 3.241671849 | K94: -3.144178001 | L94: 2.333760039 | N94: -7.01692251e-08 | O94: 2.621592943e-08 | P94: -8.673623153e-09
E95: 1.044 | F95: 3.236184391 | G95: -3.105309287 | H95: 2.296263189 | J95: 3.236184322 | K95: -3.105309261 | L95: 2.296263181 | N95: -6.888135218e-08 | O95: 2.568162838e-08 | P95: -8.461290335e-09
E96: 1.056 | F96: 3.229134117 | G96: -3.066515852 | H96: 2.259232323 | J96: 3.22913405 | K96: -3.066515827 | L96: 2.259232315 | N96: -6.760565796e-08 | O96: 2.515320574e-08 | P96: -8.25179125e-09
E97: 1.068 | F97: 3.220598303 | G97: -3.02781601 | H97: 2.222666434 | J97: 3.220598237 | K97: -3.027815985 | L97: 2.222666426 | N97: -6.634252436e-08 | O97: 2.463079785e-08 | P97: -8.045166755e-09
E98: 1.08 | F98: 3.21065137 | G98: -2.989227137 | H98: 2.186564295 | J98: 3.210651305 | K98: -2.989227113 | L98: 2.186564287 | N98: -6.509228534e-08 | O98: 2.41145246e-08 | P98: -7.841453264e-09
E99: 1.092 | F99: 3.199365045 | G99: -2.950765734 | H99: 2.150924473 | J99: 3.199364982 | K99: -2.950765711 | L99: 2.150924465 | N99: -6.385525531e-08 | O99: 2.360449614e-08 | P99: -7.640682309e-09
E100: 1.104 | F100: 3.186808449 | G100: -2.912447457 | H100: 2.115745345 | J100: 3.186808387 | K100: -2.912447434 | L100: 2.115745337 | N100: -6.263171315e-08 | O100: 2.310080882e-08 | P100: -7.442880534e-09
E101: 1.116 | F101: 3.173048176 | G101: -2.874287146 | H101: 2.081025102 | J101: 3.173048114 | K101: -2.874287123 | L101: 2.081025095 | N101: -6.142193065e-08 | O101: 2.260355414e-08 | P101: -7.248071476e-09
E102: 1.128 | F102: 3.158148374 | G102: -2.836298859 | H102: 2.046761765 | J102: 3.158148314 | K102: -2.836298836 | L102: 2.046761758 | N102: -6.022612808e-08 | O102: 2.211280492e-08 | P102: -7.056272899e-09
E103: 1.14 | F103: 3.14217083 | G103: -2.798495896 | H103: 2.012953188 | J103: 3.142170771 | K103: -2.798495874 | L103: 2.012953181 | N103: -5.904452216e-08 | O103: 2.162863222e-08 | P103: -6.867501678e-09
E104: 1.152 | F104: 3.125175038 | G104: -2.760890831 | H104: 1.979597072 | J104: 3.12517498 | K104: -2.76089081 | L104: 1.979597065 | N104: -5.787730384e-08 | O104: 2.115109421e-08 | P104: -6.68176825e-09
E105: 1.164 | F105: 3.107218277 | G105: -2.723495538 | H105: 1.946690969 | J105: 3.107218221 | K105: -2.723495518 | L105: 1.946690963 | N105: -5.67246401e-08 | O105: 2.068024108e-08 | P105: -6.499081051e-09
E106: 1.176 | F106: 3.088355683 | G106: -2.686321216 | H106: 1.914232295 | J106: 3.088355628 | K106: -2.686321195 | L106: 1.914232289 | N106: -5.558666771e-08 | O106: 2.021611234e-08 | P106: -6.319445411e-09
E107: 1.188 | F107: 3.068640317 | G107: -2.649378413 | H107: 1.882218334 | J107: 3.068640262 | K107: -2.649378393 | L107: 1.882218328 | N107: -5.446352525e-08 | O107: 1.975874397e-08 | P107: -6.142862663e-09
E108: 1.2 | F108: =-2*$C$25*G108-$C$25^2*H108 -> 3.048123231 | G108: -2.612677055 | H108: =($C$31+$C$32*E108)*EXP(-$C$25*E108) -> 1.850646247 | J108: 3.048123177 | K108: -2.612677035 | L108: 1.850646241 | N108: -5.335531572e-08 | O108: 1.930816129e-08 | P108: -5.969332362e-09
E109: 1.212 | F109: 3.026853537 | G109: -2.576226465 | H109: 1.819513081 | J109: 3.026853485 | K109: -2.576226447 | L109: 1.819513075 | N109: -5.226213151e-08 | O109: 1.886438472e-08 | P109: -5.798851843e-09
E110: 1.224 | F110: 3.004878469 | G110: -2.540035391 | H110: 1.788815774 | J110: 3.004878418 | K110: -2.540035373 | L110: 1.788815768 | N110: -5.118404278e-08 | O110: 1.842742448e-08 | P110: -5.63141378e-09
E111: 1.236 | F111: 2.982243443 | G111: -2.504112022 | H111: 1.758551161 | J111: 2.982243393 | K111: -2.504112004 | L111: 1.758551155 | N111: -5.01211197e-08 | O111: 1.799729032e-08 | P111: -5.4670104e-09
E112: 1.248 | F112: 2.958992119 | G112: -2.468464013 | H112: 1.728715984 | J112: 2.95899207 | K112: -2.468463996 | L112: 1.728715978 | N112: -4.907339601e-08 | O112: 1.75739796e-08 | P112: -5.305630602e-09
E113: 1.26 | F113: 2.935166454 | G113: -2.433098508 | H113: 1.699306895 | J113: 2.935166406 | K113: -2.433098491 | L113: 1.699306889 | N113: -4.804090281e-08 | O113: 1.715748743e-08 | P113: -5.147261728e-09
E114: 1.272 | F114: 2.910806766 | G114: -2.398022154 | H114: 1.670320463 | J114: 2.910806719 | K114: -2.398022138 | L114: 1.670320458 | N114: -4.702365697e-08 | O114: 1.674780314e-08 | P114: -4.991888902e-09
E115: 1.284 | F115: 2.885951781 | G115: -2.363241127 | H115: 1.641753181 | J115: 2.885951735 | K115: -2.36324111 | L115: 1.641753177 | N115: -4.602165937e-08 | O115: 1.634490987e-08 | P115: -4.839495027e-09
E116: 1.296 | F116: 2.860638689 | G116: -2.328761144 | H116: 1.613601472 | J116: 2.860638644 | K116: -2.328761128 | L116: 1.613601467 | N116: -4.503490292e-08 | O116: 1.594878807e-08 | P116: -4.690062338e-09
E117: 1.308 | F117: 2.834903196 | G117: -2.294587488 | H117: 1.585861689 | J117: 2.834903152 | K117: -2.294587472 | L117: 1.585861684 | N117: -4.40633654e-08 | O117: 1.555941154e-08 | P117: -4.543570187e-09
E118: 1.32 | F118: 2.80877957 | G118: -2.26072502 | H118: 1.558530127 | J118: 2.808779527 | K118: -2.260725004 | L118: 1.558530123 | N118: -4.310701396e-08 | O118: 1.517675052e-08 | P118: -4.399997033e-09
E119: 1.332 | F119: 2.782300693 | G119: -2.227178199 | H119: 1.531603026 | J119: 2.782300651 | K119: -2.227178184 | L119: 1.531603021 | N119: -4.216580862e-08 | O119: 1.480077216e-08 | P119: -4.259320008e-09
E120: 1.344 | F120: 2.755498105 | G120: -2.193951098 | H120: 1.505076571 | J120: 2.755498063 | K120: -2.193951083 | L120: 1.505076567 | N120: -4.123969788e-08 | O120: 1.443143915e-08 | P120: -4.121514685e-09
E121: 1.356 | F121: 2.72840205 | G121: -2.161047418 | H121: 1.478946905 | J121: 2.728402009 | K121: -2.161047404 | L121: 1.478946901 | N121: -4.0328616e-08 | O121: 1.406870931e-08 | P121: -3.986555308e-09
E122: 1.368 | F122: 2.701041519 | G122: -2.128470506 | H122: 1.453210126 | J122: 2.70104148 | K122: -2.128470492 | L122: 1.453210122 | N122: -3.943250348e-08 | O122: 1.371254088e-08 | P122: -3.854415009e-09
E123: 1.38 | F123: 2.673444296 | G123: -2.096223368 | H123: 1.427862294 | J123: 2.673444257 | K123: -2.096223355 | L123: 1.42786229 | N123: -3.855127328e-08 | O123: 1.336288458e-08 | P123: -3.725066255e-09
E124: 1.392 | F124: 2.645636991 | G124: -2.064308683 | H124: 1.402899436 | J124: 2.645636953 | K124: -2.06430867 | L124: 1.402899432 | N124: -3.768484635e-08 | O124: 1.301969155e-08 | P124: -3.598479958e-09
E125: 1.404 | F125: 2.617645088 | G125: -2.032728819 | H125: 1.378317546 | J125: 2.617645051 | K125: -2.032728806 | L125: 1.378317543 | N125: -3.683312855e-08 | O125: 1.26829085e-08 | P125: -3.474626364e-09
E126: 1.416 | F126: 2.589492982 | G126: -2.001485842 | H126: 1.354112596 | J126: 2.589492946 | K126: -2.001485829 | L126: 1.354112593 | N126: -3.599601861e-08 | O126: 1.235247993e-08 | P126: -3.353475275e-09
E127: 1.428 | F127: 2.561204011 | G127: -1.970581534 | H127: 1.330280532 | J127: 2.561203976 | K127: -1.970581522 | L127: 1.330280528 | N127: -3.517341618e-08 | O127: 1.202834898e-08 | P127: -3.234994939e-09
E128: 1.44 | F128: 2.532800499 | G128: -1.940017404 | H128: 1.306817279 | J128: 2.532800465 | K128: -1.940017392 | L128: 1.306817276 | N128: -3.436520579e-08 | O128: 1.171045483e-08 | P128: -3.11915338e-09
E129: 1.452 | F129: 2.504303787 | G129: -1.909794695 | H129: 1.283718748 | J129: 2.504303754 | K129: -1.909794684 | L129: 1.283718745 | N129: -3.357127465e-08 | O129: 1.139873729e-08 | P129: -3.005918625e-09
E130: 1.464 | F130: 2.475734269 | G130: -1.879914404 | H130: 1.260980836 | J130: 2.475734237 | K130: -1.879914393 | L130: 1.260980834 | N130: -3.279149841e-08 | O130: 1.109313152e-08 | P130: -2.895256923e-09
E131: 1.476 | F131: 2.447111424 | G131: -1.850377286 | H131: 1.23859943 | J131: 2.447111392 | K131: -1.850377275 | L131: 1.238599427 | N131: -3.20257536e-08 | O131: 1.079357381e-08 | P131: -2.787135411e-09
E132: 1.488 | F132: 2.418453847 | G132: -1.821183868 | H132: 1.216570407 | J132: 2.418453815 | K132: -1.821183858 | L132: 1.216570404 | N132: -3.127390791e-08 | O132: 1.049999621e-08 | P132: -2.681519229e-09
E133: 1.5 | F133: 2.389779282 | G133: -1.792334461 | H133: 1.194889641 | J133: 2.389779251 | K133: -1.792334451 | L133: 1.194889638 | N133: -3.053582898e-08 | O133: 1.021233142e-08 | P133: -2.578374181e-09
E134: 1.512 | F134: 2.361104651 | G134: -1.763829166 | H134: 1.173553003 | J134: 2.361104621 | K134: -1.763829156 | L134: 1.173553001 | N134: -2.981137737e-08 | O134: 9.930510192e-09 | P134: -2.47766585e-09
E135: 1.524 | F135: 2.332446082 | G135: -1.735667885 | H135: 1.152556365 | J135: 2.332446053 | K135: -1.735667876 | L135: 1.152556362 | N135: -2.910041363e-08 | O135: 9.654462119e-09 | P135: -2.37935871e-09
E136: 1.536 | F136: 2.30381894 | G136: =$C$32*EXP(-$C$25*E136)-$C$25*H136 -> -1.707850334 | H136: 1.131895599 | J136: 2.303818912 | K136: -1.707850325 | L136: 1.131895597 | N136: -2.840279212e-08 | O136: 9.384115263e-09 | P136: -2.283417233e-09
E137: =E136+$C$8 -> 1.548 | F137: 2.275237851 | G137: -1.680376046 | H137: 1.111566584 | J137: 2.275237823 | K137: -1.680376037 | L137: 1.111566581 | N137: -2.771836538e-08 | O137: 9.119397459e-09 | P137: -2.189806114e-09
E138: 1.56 | F138: 2.246716729 | G138: -1.653244386 | H138: 1.091565203 | J138: 2.246716702 | K138: -1.653244377 | L138: 1.091565201 | N138: -2.704698332e-08 | O138: 8.860235878e-09 | P138: -2.098490048e-09
E139: 1.572 | F139: 2.218268804 | G139: -1.626454552 | H139: 1.071887351 | J139: 2.218268777 | K139: -1.626454543 | L139: 1.071887349 | N139: -2.638849317e-08 | O139: 8.606556356e-09 | P139: -2.009433064e-09
E140: 1.584 | F140: 2.189906643 | G140: -1.600005591 | H140: 1.052528931 | J140: 2.189906617 | K140: -1.600005583 | L140: 1.052528929 | N140: -2.574274038e-08 | O140: 8.358284287e-09 | P140: -1.922599191e-09
E141: 1.596 | F141: 2.161642176 | G141: -1.573896402 | H141: 1.033485858 | J141: 2.161642151 | K141: -1.573896394 | L141: 1.033485856 | N141: -2.51095722e-08 | O141: 8.115345951e-09 | P141: -1.837952901e-09
E142: 1.608 | F142: 2.13348672 | G142: -1.548125743 | H142: 1.014754063 | J142: 2.133486696 | K142: -1.548125735 | L142: 1.014754061 | N142: =J142-F142 -> -2.448883052e-08 | O142: 7.877664965e-09 | P142: -1.755457335e-09
E143: 1.62 | F143: 2.105451001 | G143: -1.522692241 | H143: 0.9963294913 | J143: 2.105450977 | K143: -1.522692234 | L143: 0.9963294896 | N143: -2.388035414e-08 | O143: 7.645166056e-09 | P143: -1.675077521e-09
E144: 1.632 | F144: 2.077545171 | G144: -1.497594399 | H144: 0.9782081063 | J144: 2.077545148 | K144: -1.497594392 | L144: 0.9782081047 | N144: -2.328398274e-08 | O144: 7.417773062e-09 | P144: -1.596777377e-09
E145: 1.644 | F145: 2.049778839 | G145: -1.472830599 | H145: 0.9603858896 | J145: 2.049778816 | K145: -1.472830592 | L145: 0.960385888 | N145: -2.269955601e-08 | O145: 7.195410268e-09 | P145: -1.520521264e-09
E146: 1.656 | F146: 2.02216108 | G146: -1.448399113 | H146: 0.9428588427 | J146: 2.022161058 | K146: -1.448399106 | L146: 0.9428588412 | N146: -2.212691141e-08 | O146: 6.978001066e-09 | P146: -1.446273212e-09
E147: 1.668 | F147: 1.994700463 | G147: -1.424298105 | H147: 0.9256229889 | J147: 1.994700442 | K147: -1.424298098 | L147: 0.9256229875 | N147: -2.156588597e-08 | O147: 6.765469518e-09 | P147: -1.373998026e-09
E148: 1.68 | F148: 1.967405067 | G148: -1.400525641 | H148: 0.908674374 | J148: 1.967405046 | K148: -1.400525634 | L148: 0.9086743727 | N148: -2.101631624e-08 | O148: 6.557739018e-09 | P148: -1.303659958e-09
E149: 1.692 | F149: 1.940282497 | G149: -1.377079692 | H149: 0.8920090675 | J149: 1.940282477 | K149: -1.377079685 | L149: 0.8920090662 | N149: -2.047804015e-08 | O149: 6.354734294e-09 | P149: -1.235224256e-09
E150: 1.704 | F150: 1.913339908 | G150: -1.353958141 | H150: 0.8756231638 | J150: 1.913339888 | K150: -1.353958135 | L150: 0.8756231626 | N150: -1.995089249e-08 | O150: 6.15637874e-09 | P150: -1.168655617e-09
E151: 1.716 | F151: 1.886584015 | G151: -1.331158787 | H151: 0.8595127833 | J151: 1.886583996 | K151: -1.331158781 | L151: 0.8595127822 | N151: -1.943471206e-08 | O151: 5.962597527e-09 | P151: -1.103919511e-09
E152: 1.728 | F152: 1.860021117 | G152: -1.308679352 | H152: 0.8436740732 | J152: 1.860021098 | K152: -1.308679347 | L152: 0.8436740722 | N152: -1.892933188e-08 | O152: 5.773314049e-09 | P152: -1.040981079e-09
E153: 1.74 | F153: 1.833657105 | G153: -1.286517485 | H153: 0.8281032086 | J153: 1.833657086 | K153: -1.286517479 | L153: 0.8281032076 | N153: -1.843458719e-08 | O153: 5.588453256e-09 | P153: -9.798064582e-10
E154: 1.752 | F154: 1.807497485 | G154: -1.264670764 | H154: 0.812796393 | J154: 1.807497467 | K154: -1.264670759 | L154: 0.8127963921 | N154: -1.795031768e-08 | O154: 5.407940762e-09 | P154: -9.203613427e-10
E155: 1.764 | F155: 1.78154739 | G155: -1.243136707 | H155: 0.7977498596 | J155: 1.781547372 | K155: -1.243136702 | L155: 0.7977498587 | N155: -1.747635991e-08 | O155: 5.231702405e-09 | P155: -8.626124259e-10
E156: 1.776 | F156: 1.755811592 | G156: -1.22191277 | H156: 0.7829598715 | J156: 1.755811575 | K156: -1.221912765 | L156: 0.7829598707 | N156: -1.701254959e-08 | O156: 5.059663133e-09 | P156: -8.065257351e-10
E157: 1.788 | F157: 1.730294523 | G157: -1.200996354 | H157: 0.768422723 | J157: 1.730294507 | K157: -1.200996349 | L157: 0.7684227222 | N157: -1.655872772e-08 | O157: 4.891750338e-09 | P157: -7.520684076e-10
E158: 1.8 | F158: 1.705000281 | G158: -1.18038481 | H158: 0.7541347395 | J158: 1.705000265 | K158: -1.180384805 | L158: 0.7541347388 | N158: -1.611473266e-08 | O158: 4.727890746e-09 | P158: -6.992075807e-10
E159: 1.812 | F159: 1.679932647 | G159: -1.160075441 | H159: 0.7400922789 | J159: 1.679932631 | K159: -1.160075436 | L159: 0.7400922782 | N159: -1.568040231e-08 | O159: 4.568011525e-09 | P159: -6.479109471e-10
E160: 1.824 | F160: 1.655095098 | G160: -1.140065506 | H160: 0.7262917312 | J160: 1.655095083 | K160: -1.140065501 | L160: 0.7262917306 | N160: -1.52555768e-08 | O160: 4.412040511e-09 | P160: -5.981463103e-10
E161: 1.836 | F161: 1.63049082 | G161: -1.120352225 | H161: 0.7127295201 | J161: 1.630490805 | K161: -1.120352221 | L161: 0.7127295195 | N161: -1.484010115e-08 | O161: 4.259907094e-09 | P161: -5.498818068e-10
E162: 1.848 | F162: 1.606122716 | G162: -1.100932781 | H162: 0.6994021025 | J162: 1.606122701 | K162: -1.100932777 | L162: 0.699402102 | N162: -1.443381459e-08 | O162: 4.111539775e-09 | P162: -5.030861283e-10
E163: 1.86 | F163: 1.581993421 | G163: -1.081804325 | H163: 0.6863059694 | J163: 1.581993407 | K163: -1.081804321 | L163: 0.6863059689 | N163: -1.403656169e-08 | O163: 3.966868611e-09 | P163: -4.577281887e-10
E164: 1.872 | F164: 1.558105313 | G164: -1.062963975 | H164: 0.6734376463 | J164: 1.558105299 | K164: -1.062963971 | L164: 0.6734376458 | N164: -1.364818836e-08 | O164: 3.825824324e-09 | P164: -4.137772347e-10
E165: 1.884 | F165: 1.534460522 | G165: -1.044408824 | H165: 0.6607936932 | J165: 1.534460509 | K165: -1.04440882 | L165: 0.6607936928 | N165: -1.326854004e-08 | O165: 3.688338301e-09 | P165: -3.712032903e-10
E166: 1.896 | F166: 1.511060943 | G166: -1.026135941 | H166: 0.6483707054 | J166: 1.51106093 | K166: -1.026135938 | L166: 0.6483707051 | N166: -1.289746443e-08 | O166: 3.554342154e-09 | P166: -3.299760465e-10
E167: 1.908 | F167: 1.487908241 | G167: -1.008142374 | H167: 0.6361653134 | J167: 1.487908229 | K167: -1.00814237 | L167: 0.6361653131 | N167: -1.25348083e-08 | O167: 3.423768158e-09 | P167: -2.900660823e-10
E168: 1.92 | F168: 1.465003868 | G168: -0.99042515 | H168: 0.6241741831 | J168: 1.465003856 | K168: -0.9904251467 | L168: 0.6241741828 | N168: -1.218042467e-08 | O168: 3.296550699e-09 | P168: -2.514445319e-10
E169: 1.932 | F169: 1.442349065 | G169: -0.9729812825 | H169: 0.6123940163 | J169: 1.442349053 | K169: -0.9729812793 | L169: 0.6123940161 | N169: -1.183416254e-08 | O169: 3.172623275e-09 | P169: -2.140826405e-10
E170: 1.944 | F170: 1.419944876 | G170: -0.9558077699 | H170: 0.6008215509 | J170: 1.419944865 | K170: -0.9558077669 | L170: 0.6008215507 | N170: -1.149587447e-08 | O170: 3.051920383e-09 | P170: -1.779517644e-10
E171: 1.956 | F171: 1.397792156 | G171: -0.9389015996 | H171: 0.5894535605 | J171: 1.397792145 | K171: -0.9389015967 | L171: 0.5894535603 | N171: -1.116541792e-08 | O171: 2.93437874e-09 | P171: -1.430242591e-10
E172: 1.968 | F172: =-2*$C$25*G172-$C$25^2*H172 -> 1.375891578 | G172: -0.9222597496 | H172: =($C$31+$C$32*E172)*EXP(-$C$25*E172) -> 0.5782868552 | J172: 1.375891567 | K172: -0.9222597468 | L172: 0.5782868551 | N172: -1.084264678e-08 | O172: 2.819934286e-09 | P172: -1.09272591e-10
E173: 1.98 | F173: 1.354243639 | G173: -0.9058791911 | H173: 0.5673182813 | J173: 1.354243629 | K173: -0.9058791884 | L173: 0.5673182812 | N173: -1.052741849e-08 | O173: 2.708524072e-09 | P173: -7.666944857e-11
E174: 1.992 | F174: 1.332848675 | G174: -0.8897568903 | H174: 0.5565447216 | J174: 1.332848665 | K174: -0.8897568877 | L174: 0.5565447215 | N174: -1.02195914e-08 | O174: 2.600086257e-09 | P174: -4.518840857e-11
E175: 2.004 | F175: 1.311706861 | G175: -0.8738898103 | H175: 0.5459630951 | J175: 1.311706851 | K175: -0.8738898078 | L175: 0.5459630951 | N175: -9.919027377e-09 | O175: 2.494560114e-09 | P175: -1.480326972e-11
E176: 2.016 | F176: 1.290818222 | G176: -0.858274913 | H176: 0.5355703574 | J176: 1.290818213 | K176: -0.8582749106 | L176: 0.5355703574 | N176: -9.625587882e-09 | O176: 2.391884801e-09 | P176: 1.451216924e-11
E177: 2.028 | F177: 1.270182641 | G177: -0.8429091607 | H177: 0.5253635006 | J177: 1.270182631 | K177: -0.8429091584 | L177: 0.5253635006 | N177: -9.339137019e-09 | O177: 2.292001144e-09 | P177: 4.278311039e-11
E178: 2.04 | F178: 1.249799861 | G178: -0.8277895184 | H178: 0.5153395531 | J178: 1.249799852 | K178: -0.8277895162 | L178: 0.5153395532 | N178: -9.059541117e-09 | O178: 2.194850635e-09 | P178: 7.003464475e-11
E179: 2.052 | F179: 1.229669498 | G179: -0.8129129544 | H179: 0.5054955798 | J179: 1.229669489 | K179: -0.8129129523 | L179: 0.5054955799 | N179: -8.786666061e-09 | O179: 2.100374985e-09 | P179: 9.62915303e-11
E180: 2.064 | F180: 1.209791043 | G180: -0.7982764428 | H180: 0.495828682 | J180: 1.209791035 | K180: -0.7982764407 | L180: 0.4958286821 | N180: -8.520381733e-09 | O180: 2.008517574e-09 | P180: 1.215778589e-10
E181: 2.076 | F181: 1.190163869 | G181: -0.7838769642 | H181: 0.4863359971 | J181: 1.19016386 | K181: -0.7838769623 | L181: 0.4863359972 | N181: -8.260558904e-09 | O181: 1.919222226e-09 | P181: 1.459175003e-10
E182: 2.088 | F182: 1.170787236 | G182: -0.7697115077 | H182: 0.4770146988 | J182: 1.170787228 | K182: -0.7697115059 | L182: 0.4770146989 | N182: -8.007068786e-09 | O182: 1.832433427e-09 | P182: 1.693337692e-10
E183: 2.1 | F183: 1.1516603 | G183: -0.7557770718 | H183: 0.4678619968 | J183: 1.151660292 | K183: -0.75577707 | L183: 0.467861997 | N183: -7.759785925e-09 | O183: 1.748096667e-09 | P183: 1.918498138e-10
E184: 2.112 | F184: 1.132782114 | G184: -0.7420706655 | H184: 0.4588751369 | J184: 1.132782107 | K184: -0.7420706638 | L184: 0.4588751371 | N184: -7.518588419e-09 | O184: 1.666158989e-09 | P184: 2.134881161e-10
E185: 2.124 | F185: 1.114151638 | G185: -0.7285893102 | H185: 0.4500514006 | J185: 1.114151631 | K185: -0.7285893086 | L185: 0.4500514009 | N185: -7.283350811e-09 | O185: 1.586566767e-09 | P185: 2.34270936e-10
E186: 2.136 | F186: 1.095767739 | G186: -0.7153300399 | H186: 0.4413881051 | J186: 1.095767732 | K186: -0.7153300384 | L186: 0.4413881054 | N186: -7.053953865e-09 | O186: 1.509268488e-09 | P186: 2.542199784e-10
E187: 2.148 | F187: 1.077629199 | G187: -0.702289903 | H187: 0.4328826031 | J187: 1.077629193 | K187: -0.7022899015 | L187: 0.4328826034 | N187: -6.830279009e-09 | O187: 1.434212971e-09 | P187: 2.733567817e-10
E188: 2.16 | F188: 1.059734721 | G188: -0.6894659628 | H188: 0.4245322827 | J188: 1.059734714 | K188: -0.6894659615 | L188: 0.424532283 | N188: -6.612208558e-09 | O188: 1.361349811e-09 | P188: 2.91702329e-10
E189: 2.172 | F189: 1.042082928 | G189: -0.6768552989 | H189: 0.4163345669 | J189: 1.042082922 | K189: -0.6768552976 | L189: 0.4163345672 | N189: -6.399627495e-09 | O189: 1.290629825e-09 | P189: 3.092770484e-10
E190: 2.184 | F190: 1.024672374 | G190: -0.6644550076 | H190: 0.408286914 | J190: 1.024672368 | K190: -0.6644550064 | L190: 0.4082869143 | N190: -6.192421242e-09 | O190: 1.222003831e-09 | P190: 3.261014792e-10
E191: 2.196 | F191: 1.007501545 | G191: -0.652262203 | H191: 0.4003868168 | J191: 1.007501539 | K191: -0.6522622019 | L191: 0.4003868171 | N191: -5.990478558e-09 | O191: 1.155424312e-09 | P191: 3.421953276e-10
E192: 2.208 | F192: 0.9905688611 | G192: -0.6402740179 | H192: 0.3926318027 | J192: 0.9905688553 | K192: -0.6402740168 | L192: 0.392631803 | N192: -5.793689972e-09 | O192: 1.090844415e-09 | P192: 3.575780783e-10
E193: 2.22 | F193: 0.9738726842 | G193: -0.6284876043 | H193: 0.3850194333 | J193: 0.9738726786 | K193: -0.6284876033 | L193: 0.3850194337 | N193: -5.601944908e-09 | O193: 1.028217511e-09 | P193: 3.722687159e-10
E194: 2.232 | F194: 0.9574113195 | G194: -0.6169001343 | H194: 0.3775473044 | J194: 0.9574113141 | K194: -0.6169001333 | L194: 0.3775473048 | N194: -5.415138116e-09 | O194: 9.674986368e-10 | P194: 3.862858922e-10
E195: 2.244 | F195: 0.9411830195 | G195: -0.6055088004 | H195: 0.3702130455 | J195: 0.9411830143 | K195: -0.6055087995 | L195: 0.3702130459 | N195: -5.23316368e-09 | O195: 9.086426056e-10 | P195: 3.996483144e-10
E196: 2.256 | F196: 0.9251859877 | G196: -0.5943108167 | H196: 0.3630143198 | J196: 0.9251859827 | K196: -0.5943108159 | L196: 0.3630143202 | N196: -5.055919461e-09 | O196: 8.5160623e-10 | P196: 4.123736352e-10
E197: 2.268 | F197: 0.9094183816 | G197: -0.583303419 | H197: 0.3559488236 | J197: 0.9094183767 | K197: -0.5833034182 | L197: 0.355948824 | N197: -4.883302651e-09 | O197: 7.963461002e-10 | P197: 4.244795626e-10
E198: 2.28 | F198: 0.8938783161 | G198: -0.5724838654 | H198: 0.3490142864 | J198: 0.8938783114 | K198: -0.5724838646 | L198: 0.3490142868 | N198: -4.715213775e-09 | O198: 7.428199167e-10 | P198: 4.359835271e-10
E199: 2.292 | F199: 0.8785638665 | G199: -0.5618494369 | H199: 0.3422084703 | J199: 0.8785638619 | K199: -0.5618494362 | L199: 0.3422084708 | N199: -4.551554467e-09 | O199: 6.909863792e-10 | P199: 4.469022374e-10
E200: 2.304 | F200: 0.8634730713 | G200: =$C$32*EXP(-$C$25*E200)-$C$25*H200 -> -0.551397438 | H200: 0.3355291702 | J200: 0.8634730669 | K200: -0.5513974373 | L200: 0.3355291706 | N200: -4.392228359e-09 | O200: 6.408047426e-10 | P200: 4.572523471e-10
... 308 more rows

Sheet お問合せ
B2: 技術的なご質問のみお受けします。
C4: sxsijk@Gmail.com | D4: sxsijk@Gmail.com
E119: =C119-C$20 -> 0
E120: =IF(C120<0,C120+360,C120)-IF(C$21<0,C$21+360,C$21) -> 0
E121: =C121-C$22 -> 0
E123: =C123-C$16 -> 0
E124: =C124-C$17 -> 0
E125: =C125-C$18 -> 0
E126: =C126-C$19 -> 0
E127: =C127-C$20 -> 0
E128: =IF(C128<0,C128+360,C128)-IF(C$21<0,C$21+360,C$21) -> 0
E129: =C129-C$22 -> 0
E130: =C130-C$23 -> 0
E131: =C131-C$24 -> 0
E132: =C132-C$25 -> 0
E133: =C133-C$26 -> 0
C136: 35 | E136: =C136-C$16 -> 35
B137: λp | E137: =C137-C$17 -> 0
E138: =C138-C$18 -> 0
C139: =SQRT(((#REF!^2*COS(RADIANS(C136)))^2+(#REF!^2*SIN(RADIANS(C136)))^2)/(#REF!^2*(1-C$4*SIN(RADIANS(C136))^2))) ->  | E139: =C139-C$19 -> 
C140: =DEGREES(C142/C139) ->  | E140: =C140-C$24 -> 
E141: =C141-C$25 -> 0
E142: =C142-C$26 -> 0
E143: =IF(C143<0,C143+360,C143)-IF(C$21<0,C$21+360,C$21) -> 0
E144: =C144-C$22 -> 0
C145: =DEGREES(ATAN2((1-C$4)*COS(RADIANS(C144)),SIN(RADIANS(C144)))) ->  | E145: =C145-C$20 -> 
C146: =SQRT(((#REF!^2*COS(RADIANS(C145)))^2+(#REF!^2*SIN(RADIANS(C145)))^2)/(#REF!^2*(1-C$4*SIN(RADIANS(C145))^2))) ->  | E146: =C146-C$23 -> 
C147: =DEGREES(ACOS(COS(RADIANS(C$138))*COS(RADIANS(C144))*(COS(RADIANS(C$137))*COS(RADIANS(C143))+SIN(RADIANS(C$137))*SIN(RADIANS(C143)))+SIN(RADIANS(C$138))*SIN(RADIANS(C144)))) -> 0 | E147: =C147-C$24 -> 0
C148: =DEGREES(ATAN2(COS(RADIANS(C$138))*SIN(RADIANS(C144))-SIN(RADIANS(C$138))*COS(RADIANS(C144))*COS(RADIANS(C143-C$137)),COS(RADIANS(C144))*SIN(RADIANS(C143-C$137)))) ->  | E148: =C148-C$25 -> 
C149: =SQRT(((C$139-C146)*COS(RADIANS(C147/2)))^2+(MAX(C$139,C146)*RADIANS(C147)-ABS(C$139-C146)*SIN(RADIANS(C147/2)))^2) ->  | E149: =C149-C$26 -> 
A150: 補正 | B150: θ＝θ+(d0-d)/r | C150: =C140+DEGREES((C142-C149)/C146) ->  | E150: =C150-C$24 -> 
C151: =C141 -> 0 | E151: =C151-C$25 -> 0
C152: =C142 -> 0 | E152: =C152-C$26 -> 0
E153: =IF(C153<0,C153+360,C153)-IF(C$21<0,C$21+360,C$21) -> 0
E154: =C154-C$22 -> 0
C155: =DEGREES(ATAN2((1-C$4)*COS(RADIANS(C154)),SIN(RADIANS(C154)))) ->  | E155: =C155-C$20 -> 
C156: =SQRT(((#REF!^2*COS(RADIANS(C155)))^2+(#REF!^2*SIN(RADIANS(C155)))^2)/(#REF!^2*(1-C$4*SIN(RADIANS(C155))^2))) ->  | E156: =C156-C$23 -> 
C157: =DEGREES(ACOS(COS(RADIANS(C$138))*COS(RADIANS(C154))*(COS(RADIANS(C$137))*COS(RADIANS(C153))+SIN(RADIANS(C$137))*SIN(RADIANS(C153)))+SIN(RADIANS(C$138))*SIN(RADIANS(C154)))) -> 0 | E157: =C157-C$24 -> 0
C158: =DEGREES(ATAN2(COS(RADIANS(C$138))*SIN(RADIANS(C154))-SIN(RADIANS(C$138))*COS(RADIANS(C154))*COS(RADIANS(C153-C$137)),COS(RADIANS(C154))*SIN(RADIANS(C153-C$137)))) ->  | E158: =C158-C$25 -> 
C159: =SQRT(((C$139-C156)*COS(RADIANS(C157/2)))^2+(MAX(C$139,C156)*RADIANS(C157)-ABS(C$139-C156)*SIN(RADIANS(C157/2)))^2) ->  | E159: =C159-C$26 -> 
